Workbook

Sheet Introduction
C1: Versión 1.0 23 de febrero de 2021
C2: Herramienta de cálculo de costos para planes de reapertura de escuelas
C3: Introducción
C5: 1. ¿Para qué sirve esta herramienta?
C6: Propósitos i) Identificar los recursos adicionales y la intensidad de uso necesaria para llevar a cabo el plan de reapertura de escuelas; ii) calcular el costo de estos recursos adicionales y especificar el financiamiento disponible; iii) evaluar si existe una brecha de financiamiento, y iv) guiar la implementación del plan de reapertura de escuelas.
C7: Destinatarios La información generada por la herramienta le será útil a funcionarios de gobierno, dirigentes escolares, organizaciones y donantes internacionales implicados en la planificación, presupuestación y financiamiento de la reapertura de escuelas durante la pandemia.
C8: Usuarios Sugerimos que las personas que completen las planillas sean funcionarios de gobierno o dirigentes escolares encargados de calcular los presupuestos para la reapertura de escuelas. Normalmente estas personas trabajan en la unidad de presupuesto. Los investigadores, organizaciones internacionales y donantes también pueden utilizar la herramienta para proporcionar asistencia técnica a los gobiernos.
C10: 2. ¿Cuáles son los componentes de la herramienta?
H12: Propósito de la planilla | L12: Entrada | P12: Salida
E14: Introducción | H14: Describe el propósito de la herramienta y cómo utilizarla
E15: Medidas previstas para la reapertura | H15: Proporciona una lista de las medidas que contribuyen a garantizar la seguridad de las operaciones, mantener el aprendizaje, respaldar el bienestar emocional y llegar a los marginados. | L15: Verifique las medidas que aplican a su contexto y especifique si aplican únicamente a las escuelas reabiertas o a todas las escuelas.
E16: Información básica sobre las escuelas | H16: Especifica el costo estimado de interés y describe el contexto en el que se aplica el costo estimado. | L16: Describa el plan de reapertura de escuelas para calcular el costo, especifique qué costo estimado es de interés y proporcione información básica sobre las escuelas.
E17: Estado de la reapertura de escuelas | H17: Registra el estado previsto de la reapertura de escuelas durante el período en cuestión. | L17: Ingrese las estimaciones previstas respecto al porcentaje de escuelas que proporcionan clases presenciales y el porcentaje de alumnos que asisten a clases presenciales.
E18: Monto de los recursos adicionales | H18: Establece los parámetros que afectan el monto de los recursos adicionales necesarios. | L18: Detalle sus supuestos en torno a la necesidad de recursos y la disponibilidad de los mismos.
E19: Calculadoras | H19: Facilita el cálculo de las cantidades de algunos recursos en caso de que no tenga los números específicos. | L19: Detalle sus supuestos en torno a la necesidad de recursos y la disponibilidad de los mismos.
E20: Precios de los recursos adicionales | H20: Ingresa el monto de recursos adicionales en función de los parámetros especificados en las páginas anteriores y orienta a los usuarios para que especifiquen el precio de cada recurso. | L20: Indique los precios de los recursos adicionales necesarios. | P20: El monto de recursos adicionales se genera de manera automática.
E21: Financiamiento | H21: Define las fuentes de financiamiento. | L21: Indique el financiamiento disponible de diversas fuentes y el porcentaje de financiamiento sujeto a reasignaciones.
E22: Informe | H22: Sintetiza el costo de los recursos adicionales necesarios, el financiamiento disponible y la brecha de financiamiento, en caso de existir. | P22: El tablero que sintetiza los resultados se genera de manera automática.
E23: Artículos que se deben adquirir | H23: Genera una lista de los recursos que deben ser adquiridos. | P23: Se genera una lista con los materiales y equipos que deben adquirirse.
C25: 3. ¿Cómo utilizar la herramienta?
C27: 1) Habilitar los macros.
C38: 2) Celdas de entrada.
C39: Siguiendo la barra de navegación, completar las siguientes celdas en la planilla: "medidas previstas para la reapertura", "información básica sobre las escuelas", "estado de la reapertura de escuelas", "monto de los recursos adicionales", "calculadoras", "precios de los recursos adicionales" y "financiamiento".
C41: 3) Celdas de salida.
C42: Las fórmulas están configuradas en las celdas de salida. Cuando mueve el cursor sobre una celda de salida, verá una descripción de la fórmula. De forma predeterminada, estas celdas están bloqueadas para reducir la posibilidad de cambios involuntarios. Usted puede desbloquear estas celdas para personalizar la herramienta en función de sus necesidades. Para desbloquear una plantilla, haga clic en "Revisar" -> "Desproteger hoja" e ingresar la contraseña cost.
C44: 4. Ayuda
C46: Para informar errores, sugerir funciones para agregar o brindar su opinión general para mejorar la herramienta, envíe un comentario | N46: aquí.
C47: Para cualquier otra pregunta, póngase en contacto con Yilin Pan (ypan@worldbank.org).
C49: 5. ¿Cómo citar esta herramienta?
C51: Yilin Pan, Alaka Holla, Nobuyuki Tanaka (2021). "Herramienta de cálculo de costos para planes de reapertura de escuelas, versión 1.0". Banco Mundial, Washington, DC.

Sheet Planned measures for reopening
C6: <Verificar las medidas que aplican a su contexto> | F6: <Indicar si las medidas aplican a todas las escuelas o a las escuelas reabiertas cuando están codificadas por color>
D7: Medidas | E7: Explicación de las medidas | F7: Aplican a | G7: Consecuencias financieras
D8: Eje 1: medidas relacionadas con la seguridad de las operaciones
D9: Establecer medidas de limpieza y desinfección | E9: Programar la limpieza periódica de las instalaciones educativas. Limpiar y desinfectar las aulas y los espacios utilizados para la instrucción, espacios comunes, gimnasios, baños, así como superficies que se tocan con frecuencia como picaportes, escritorios, juguetes, insumos, interruptores de luz, marcos de puertas, equipos de juego, material didáctico utilizado por los niños y portadas de los libros. | F9: Escuelas reabiertas | G9: Aumento en el costo | J9: P101
D10: Proporcionar equipos de protección personal | E10: Hacer cumplir la política de la escuela de utilizar una mascarilla o una máscara, en línea con las directrices nacionales o locales. Proporcionar suficientes mascarillas médicas para los alumnos y el personal. Presentarles a los alumnos con problemas sensoriales o sensibilidades táctiles las máscaras que sean más cómodas para ellos. | F10: Escuelas reabiertas | G10: Aumento en el costo | J10: P102
D11: Proporcionar materiales para higienizar las manos | E11: Crear una rutina frecuente para la higienización de manos, en especial para los niños pequeños. Asegurarse que las estrategias de lavado de manos incluyan el lavado con agua y jabón durante al menos 20 segundos. Se deben proporcionar estaciones para el lavado o higiene de manos en las entradas de las escuelas y a lo largo de las instalaciones escolares (p. ej., entradas y salidas de los gimnasios e instalaciones deportivas, baños, comedor y aulas). | F11: Escuelas reabiertas | G11: Aumento en el costo | J11: P103
D12: Realizar controles médicos in situ | E12: Realizar un control médico simple a todo el personal, alumnos y visitantes que ingresen al edificio, que incluya temperatura del cuerpo y verifique la existencia de síntomas de alto riesgo. | F12: Escuelas reabiertas | G12: Aumento en el costo | J12: P104
D13: Monitorear síntomas a través de encuestas realizadas a los padres | E13: Elaborar un/s cuestionario/encuesta de salud para monitorear el historial de fiebre y otros síntomas. Los padres, tutores y cuidadores pueden responder ellos mismos estas preguntas a través de los portales de salud escolares o las plataformas de comunicación de las escuelas. Las escuelas también pueden compartir los resultados con los padres y ayudar con los informes diarios. | F13: Escuelas reabiertas | G13: Aumento en el costo | J13: P105
D14: Limitar el intercambio de objetos | E14: Asegurar, en la medida de lo posible, la existencia de suministros adecuados para minimizar el intercambio de materiales que se tocan con frecuencia (p. ej., asignarle a cada alumno sus propios materiales de arte y equipos) o limitar el uso de suministros y equipos a un grupo de niños por vez, con limpieza y desinfección de por medio. Evitar el intercambio de dispositivos electrónicos, juguetes, libros y otros materiales lúdicos o didácticos. | F14: Escuelas reabiertas | G14: Aumento en el costo | J14: P106
D15: Asegurar los espacios, materiales y estrategias para mantener la distancia física y social | E15: Aumentar el espacio entre escritorios (al menos 1,5 metros entre escritorios). Reconvertir los espacios escolares (o comunitarios) no utilizados o de bajo uso para incrementar el espacio para las aulas y facilitar el distanciamiento social, incluidos espacios al aire libre. Escalonar el horario de ingreso y egreso, los recreos/recesos y la hora del almuerzo. Minimizar los recesos compartidos. | F15: Escuelas reabiertas | G15: Aumento en el costo | J15: P107
D16: Establecer barreras y guías físicas | E16: Instalar barreras físicas como barreras para estornudos y mamparas. Proporcionar guías físicas, como bandas pintadas en el piso o en la acera y señales en las paredes (como guías para generar “vías de un solo sentido” en los pasillos). Agregar barreras físicas, como pantallas de plástico flexible, entre los lavabos del baño, especialmente cuando no están a un mínimo de dos metros de distancia. | F16: Escuelas reabiertas | G16: Aumento en el costo | J16: P108
D17: Instruir a alumnos, docentes, personal y padres respecto a la seguridad de las operaciones escolares | E17: Educar a todos en la escuela respecto a la prevención y los protocolos de seguridad en torno a la COVID-19. Explicarles a los estudiantes la razón de las medidas en la escuela (fomentar los buenos modales al toser o estornudar y discutir la necesidad de protocolos de seguridad, la existencia de diferentes sensibilidades, protocolos de higiene de manos, especialmente luego de ir al baño, antes de comer y después de sonarse la nariz, toser o estornudar). Comunicar a los padres las medidas que las escuelas están implementando y pedirles su colaboración para informar de cualquier caso de COVID-19 que ocurra en el hogar, así como la importancia de monitorear y responder ante cualquier síntoma de COVID-19 en el hogar, los protocolos para acompañar y recoger a los alumnos, etc.). Brindar actualizaciones semanales a medida que la pandemia evoluciona. Emitir anuncios periódicos sobre la necesidad de reducir la transmisión de COVID-19 por el sistema de altavoces. Incluir mensajes (por ejemplo, videos) respecto a los comportamientos que previenen la transmisión de COVID-19 cuando se le habla al personal y las familias (en sitios web escolares, correos electrónicos y en las cuentas de la escuela en las redes sociales). Colocar letreros en ubicaciones de alta visibilidad (p. ej., entradas a la escuela, baños) que promuevan medidas de protección diarias y que describan cómo frenar la transmisión de gérmenes. | F17: Escuelas reabiertas | G17: Aumento en el costo | J17: P109
D18: Mantener un nivel de colaboración y coordinación apropiados con las autoridades de salud pública locales. | E18: De aparecer un caso o un brote en la escuela, proporcionarles a los funcionarios de salud pública y a los padres la información necesaria para rastrear contactos. Los funcionarios escolares deben notificar a las autoridades de salud pública de darse un caso positivo de COVID-19. Elaborar un plan junto al departamento de salud regional y local para el seguimiento de casos cuando surja un caso positivo en la escuela. Asegurarse que los alumnos que hayan tenido contacto con un caso de COVID-19 permanezcan en sus casas por 14 días. | F18: Escuelas reabiertas | G18: Aumento en el costo | J18: P110
D19: Adaptar el transporte | E19: Poner en marcha medidas de higiene respiratoria y de manos y de distanciamiento físico en los medios de transporte como autobuses escolares, así como consejos para que los estudiantes viajen de forma segura hacia y desde la escuela, incluido el uso de transporte público. Solo un niño por asiento y una distancia de al menos un metro dentro de los autobuses escolares, de ser posible. También de ser posible, las ventanas del autobús deben permanecer abiertas. Los alumnos, el conductor y el acompañante deben viajar con mascarillas. Los conductores deben llevar un registro diario de los alumnos que viajan. Desaconsejar los amontonamientos durante la salida de la escuela o el jardín de infantes. | F19: Escuelas reabiertas | G19: Aumento en el costo | J19: P111
D20: Adaptar la ventilación | E20: Los sistemas de ventilación deben operar de forma correcta y, de ser posible, debe aumentarse la circulación de aire del exterior, por ejemplo abriendo las ventanas y las puertas. | F20: Escuelas reabiertas | G20: Aumento en el costo | J20: P112
D21: Reorganizar el programa de almuerzo | E21: Tener en cuenta opciones como almuerzos de tipo “tomar y llevar” en una bolsa o la entrega de comida. Utilizar artículos descartables para la comida (utensilios, platos). Mejorar la higiene y los controles para identificar enfermedades entre el personal de cocina y sus contactos más cercanos. | F21: Escuelas reabiertas | G21: Aumento en el costo | J21: P113
D22: Cancelar las excursiones, las asambleas y otras reuniones grandes | E22: Cancelar las excursiones, eventos y actividades extracurriculares que impliquen las reuniones de personas. | F22: Todas las escuelas, independientemente de su estado de reapertura | G22: Ahorros potenciales | J22: P114
D23: Eje 2: medidas para sostener el aprendizaje
D24: Posibilitar el desarrollo profesional de los docentes. | E24: Posibilitar un desarrollo profesional que sea más práctico y orientado a cumplir con ciertas necesidades específicas de instrucción por parte de los docentes, por ejemplo capacitación sobre cómo utilizar computadoras para las instrucciones. | F24: Todas las escuelas, independientemente de su estado de reapertura | G24: Aumento en el costo | J24: P201
D25: Mantener los enfoques flexibles o parciales de aprendizaje remoto | E25: Mantener las prácticas de aprendizaje remoto mediante métodos combinados donde sea necesario y factible (p. ej., algunos grupos de alumnos pueden tomar clases en línea, aprender en casa a través de la asignación de tareas, blogs, realizar actividades físicas en el hogar). Si la educación a distancia no es posible, invitar a los alumnos a llevar sus libros de texto a casa o disponer lo necesario para enviar tareas. Tener en cuenta la emisión de clases por radio o TV, establecer un sistema de tareas escolares en el hogar con la participación de hermanos mayores, o con amigos por teléfono. | F25: Todas las escuelas, independientemente de su estado de reapertura | G25: Aumento en el costo | J25: P202
D26: Realizar evaluaciones de diagnóstico | E26: Preparar a los docentes para que evalúen las necesidades de aprendizaje y para encontrarse con cada alumno allí donde se encuentre. Brindar capacitación a los docentes sobre cómo evaluar las necesidades, bienestar y desempeño de los alumnos. | F26: Escuelas reabiertas | G26: Aumento en el costo | J26: P203
D27: Aumentar la intensidad y la diferenciación (aprendizaje personalizado) | E27: Poner en marcha programas de recuperación y aceleración del aprendizaje a gran escala. De ser posible, contratar auxiliares pedagógicos para proporcionar clases de refuerzo cara a cara o grupales. | F27: Escuelas reabiertas | G27: Aumento en el costo | J27: P204
D28: Extender los horarios | E28: Extender los horarios, especialmente para aquellos alumnos que se están quedando atrás. De ser necesario, utilizar el verano para recuperar algunos de los días de clase perdidos para mitigar la pérdida de aprendizaje. | F28: Escuelas reabiertas | G28: Aumento en el costo | J28: P205
D29: Contratar nuevos docentes, reorganizar los turnos de trabajo o extender el horario de trabajo de los docentes | E29: Contratar nuevos docentes, reorganizar los turnos de trabajo o extender el horario de trabajo de los docentes para i) asegurar un tamaño de clase más pequeño y ii) sustituir a los docentes enfermos. Reasignar a la mayoría de los docentes de riesgo (edad, comorbilidades) al aprendizaje a distancia o tareas administrativas. | F29: Escuelas reabiertas | G29: Aumento en el costo | J29: P206
D30: Eje 3: medidas para apoyar el bienestar y la recuperación emocional
D31: Proporcionar apoyo y asesoramiento psicosocial exclusivo. | E31: En los países donde las instituciones educativas cuentan con asesores o psicólogos profesionales para atender a los alumnos con necesidades psicosociales, las escuelas deberían estar preparadas ante un incremento de la demanda aumentando el número de asesores o extendiendo el horario de trabajo. Pero en los países donde las escuelas no cuentan con ningún (o pocos) asesor(es), los docentes podrían tener que asumir la responsabilidad de proporcionarles a los alumnos algún tipo de apoyo psicosocial. Fomentar entre los empleados y los alumnos una alimentación sana, ejercitación, sueño adecuado y el tiempo para relajarse. Alentar a los empleados y alumnos para que hablen con personas de su confianza respecto a sus preocupaciones y sentimientos. | F31: Escuelas reabiertas | G31: Aumento en el costo | J31: P301
D32: Adoptar programas de aprendizaje social y emocional (ASE) | E32: Fomentar las relaciones entre alumnos y entre alumnos y adultos en la escuela. Reducir el estigma. Apoyar el bienestar social y emocional de alumnos y docentes. | F32: Escuelas reabiertas | G32: Aumento en el costo | J32: P302
D33: Eje 4: medidas para llegar a los más marginados
D34: Proporcionar apoyo adecuado para las necesidades de recuperación, especialmente entre alumnos desfavorecidos y vulnerables. | E34: Dependiendo del contexto del país, estos incluyen a refugiados, inmigrantes, minorías, aquellos que viven en la pobreza, en áreas geográficamente remotas o en barrios informales urbanos, niños con discapacidades, aquellos que carecen de nutrición y protección, los expuestos al trabajo infantil, violencia u otras condiciones adversas, los que enfrentan cada vez más dificultades y alumnos que no han podido participar del aprendizaje en línea o en el hogar. Incluir máscaras faciales transparentes en la lista de suministros escolares para los docentes y el personal que interactúan regularmente con los alumnos que son sordos o tienen dificultades auditivas, alumnos que están aprendiendo a leer, que tienen alguna discapacidad, y los que dependen de la lectura de labios como parte de su aprendizaje. Proporcionar instrucciones personalizadas o programas extracurriculares para ayudar a los alumnos con necesidades especiales a ponerse al día. | F34: Escuelas reabiertas | G34: Aumento en el costo | J34: P401
D35: Llevar a cabo campañas de rematriculación y apoyo envolvente para evitar la deserción. | E35: Este apoyo incluye incentivos financieros y no financieros; por ejemplo, programas de alimentación, provisión de uniformes escolares o la eliminación o exención de la matrícula escolar, así como otras barreras para evitar la asistencia escolar. Proporcionar apoyo social y emocional a los niños fuera de la escuela. Asegurar un seguimiento frecuente y acorde a la edad y apoyo para los niños fuera de la escuela y evitar penalizar o estigmatizar a dichos alumnos. | F35: Escuelas reabiertas | G35: Aumento en el costo | J35: P402
D36: Monitorear y planificar el ausentismo | E36: Revisar los patrones normales de ausentismo escolar tanto en alumnos como en el personal. Alertar a los funcionarios de salud locales respecto a grandes aumentos en el ausentismo de los alumnos o del personal. | F36: Escuelas reabiertas | G36: Aumento en el costo | J36: P403

Sheet Basic information about schools
H5: <Responda a las preguntas y complete las celdas de entrada>
C7: Información básica de las escuelas
C9: 1. País/economía | F9: Storyland | H9: <Elija el país/economía de la lista desplegable>
C11: 2. El plan de reapertura de escuelas al que se le debe calcular el costo
D13: 1) Nombre del documento
D14: Directrices sobre cómo abrir una escuela paso a paso en Storyland
D16: 2) Enlace al documento.
D19: 3) ¿Cuáles son los niveles educativos abarcados por el plan de reapertura de la escuela?
D20: Jardín de infantes a 12.º grado
C22: 3. ¿Cuál es el costo estimado de interés?
D24: 1) ¿Está interesado en estimar el costo de reabrir las escuelas de todo el país, una región/provincia/distrito o una escuela?
G27: Región Neverland | H27: <Indicar el nombre de la región>
H28: <Indicar el nombre de la provincia/estado>
H29: <Indicar el nombre del distrito>
H30: <Indicar el nombre de la escuela>
D33: 2) ¿A qué niveles educativos desea estimarles el costo? Para cada nivel educativo que marque, indique los grados que imparten clases presenciales.
G35: Edad 3-5 | H35: <Indique los grados o grupos etarios>
G36: Jardín a 3.º | H36: <Indique los grados>
H37: <Indique los grados>
H38: <Indique los grados>
H39: <Indique los grados>
D42: 3) ¿Qué período de tiempo abarca el costo estimado: p. ej., enero-diciembre 2021, el primer semestre de 2021, el primer trimestre de 2021, el año académico 2021-2022?
D43: El primer semestre de 2021.
D45: ="Number of school days during the time period of interest, i.e., "&LOWER(D43)&"" -> Number of school days during the time period of interest, i.e., el primer semestre de 2021. | G45: 90 | H45: días
D46: Cantidad de días de escuela en un año académico | G46: 180 | H46: días
C48: ="4. Basic statistics of the education levels of interest (i.e., "&IF(Output!D3=TRUE,Output!D4,"")&" "&IF(Output!E3=TRUE,Output!E4,"")&" "&IF(Output!F3=TRUE,Output!F4,"")&" "&IF(Output!G3=TRUE,Output!G4,"")&" "&IF(Output!H3=TRUE,Output!H4,"")&" ) "&IF(F9 = "", "", "in "&CHOOSE(Output!C3,Output!C4,Output!C5,Output!C6,Output!C7,Output!C8)&"") &"" -> 4. Basic statistics of the education levels of interest (i.e., educación preescolar, educación primaria, ) in Región Neverland
D50: Alumnos, escuelas y clases
D51: Cantidad de alumnos | G51: 10000
D52: Cantidad de escuelas | G52: 50 | H52: Escuelas privadas incluidas
D53: Cantidad de clases | G53: 500
D55: Cantidad de alumnos por escuela | G55: =IF(ISERROR(N_student/N_school), "", N_student/N_school) -> 200
D56: Cantidad de alumnos por clase | G56: =IF(ISERROR(N_student/N_class), "", N_student/N_class) -> 20
D57: Cantidad de alumnos con necesidades especiales | G57: 1000
G60: Total | I60: Disponible actualmente | J60: Recién contratados
D61: Docentes y personal escolar | G61: =SUM(N_teacher, N_management_staff, N_teaching_aid, N_cleaner, N_nurse, N_driver, N_food_staff, N_technician, N_counselor, N_psychologist, N_social_worker, N_mobilizer, N_other_staff) -> 2240 | I61: =SUM(N_teacher_current, N_management_staff_current, N_teaching_aid_current, N_cleaner_current, N_nurse_current, N_driver_current, N_food_staff_current, N_technician_current, N_counselor_current, N_psychologist_current, N_social_worker_current, N_mobilizer_current, N_other_staff_current) -> 2060 | J61: =SUM(N_newly_hired_teacher, N_newly_hired_management_staff, N_newly_hired_teaching_aid, N_newly_hired_cleaner, N_newly_hired_nurse, N_newly_hired_driver, N_newly_hired_food_staff, N_newly_hired_technician, N_newly_hired_counselor, N_newly_hired_psychologist, N_newly_hired_social_worker, N_newly_hired_mobilizer, N_newly_hired_other_staff) -> 180
D62: Cantidad de docentes | G62: =N_teacher_current + N_newly_hired_teacher -> 1050 | I62: 1000 | J62: 50 | K62: <La Calculadora 1.1 le ayuda a calcular la demanda de nuevos docentes>
D63: Cantidad de personal administrativo | G63: =N_management_staff_current + N_newly_hired_management_staff -> 200 | I63: 200 | K63: <Asuma que no se contrata personal administrativo nuevo, pero esto puede ser sobrescrito.>
D64: Cantidad de auxiliares pedagógicos | G64: =N_teaching_aid_current + N_newly_hired_teaching_aid -> 120 | I64: 100 | J64: 20 | K64: <La Calculadora 1.2 le ayuda a calcular la demanda de auxiliares pedagógicos>
D65: Cantidad de personal no docente
D66: Personal de limpieza | G66: =N_cleaner_current + N_newly_hired_cleaner -> 110 | I66: 100 | J66: 10 | K66: <La Calculadora 1.3 le ayuda a calcular la demanda de personal de limpieza>
D67: Enfermeras escolares | G67: =N_nurse_current + N_newly_hired_nurse -> 110 | I67: 100 | J67: 10 | K67: <La Calculadora 1.3 le ayuda a calcular la demanda de enfermeras escolares>
D68: Conductores de autobús escolares | G68: =N_driver_current + N_newly_hired_driver -> 100 | I68: 100 | K68: <Asuma que no se contratan conductores de autobús nuevos, pero esto puede ser sobrescrito.>
D69: Personal de cocina | G69: =N_food_staff_current + N_newly_hired_food_staff -> 100 | I69: 100 | K69: <Asuma que no se contrata personal de cocina nuevo, pero esto puede ser sobrescrito.>
D70: Personal de apoyo técnico | G70: =N_technician_current + N_newly_hired_technician -> 110 | I70: 100 | J70: 10 | K70: <La Calculadora 1.3 le ayuda a calcular la demanda de técnicos>
D71: Asesores | G71: =N_counselor_current + N_newly_hired_counselor -> 100 | I71: 80 | J71: 20 | K71: <La Calculadora 1.3 le ayuda a calcular la demanda de asesores>
D72: Psicólogos | G72: =N_psychologist_current + N_newly_hired_psychologist -> 100 | I72: 80 | J72: 20 | K72: <La Calculadora 1.3 le ayuda a calcular la demanda de psicólogos>
D73: Trabajadores sociales | G73: =N_social_worker_current + N_newly_hired_social_worker -> 100 | I73: 80 | J73: 20 | K73: <La Calculadora 1.3 le ayuda a calcular la demanda de trabajadores sociales>
D74: Movilizadores sociales para la campaña de matriculación | G74: =N_mobilizer_current + N_newly_hired_mobilizer -> 40 | I74: 20 | J74: 20 | K74: <La Calculadora 1.3 le ayuda a calcular la demanda de movilizadores sociales>
D75: Otros | G75: =N_other_staff_current + N_newly_hired_other_staff -> 0 | I75: 0 | J75: 0
D78: Cantidad de docentes que trabajan junto a los alumnos con necesidades especiales | G78: =IF(ISERROR(N_teacher * (N_student_special_needs/N_student)), "", N_teacher * (N_student_special_needs/N_student)) -> 105 | H78: <La configuración predeterminada asume que esta cifra es proporcional al número de alumnos con necesidades especiales>
D80: Autobús escolar | S80: 111
D81: Porcentaje de alumnos que utilizan autobuses escolares
E82: En la etapa con COVID-19 | G82: 0.3 | H82: entre los que asisten a la escuela
E83: En la etapa pre COVID-19 | G83: 0.5 | H83: entre los que asisten a la escuela
D84: Capacidad total de los autobuses escolares, en promedio | G84: 20 | H84: alumnos por autobús
D86: Almuerzo escolar | S86: 113
D87: Porcentaje de escuelas que en este momento brindan un almuerzo escolar | G87: 0.9 | H87: entre los que asisten a la escuela
D89: Evaluaciones de diagnóstico | S89: 203
D90: Porcentaje de estudiantes que deben testearse | G90: 0.95
D92: Aprendizaje personalizado (en forma de clases de refuerzo) | S92: 204
D93: Porcentaje de alumnos que necesitan aprendizaje personalizado | G93: 0.2
D95: Instalaciones
D96: ¿Cuántos salones de clase comparten un baño? | G96: 4
D97: ¿Los docentes de cuántos salones de clase comparten una oficina? | G97: 4
C99: 5. ¿En qué moneda se expresa el costo? | G99: Bea
C101: 6. ¿En qué año desea expresar el costo? | G101: 2021
D103: .

Sheet School reopening status
C7: ="School reopening status during "&LOWER('Basic information about schools'!D43)&"" -> School reopening status during el primer semestre de 2021.
C8: <Si las escuelas o los alumnos regresan a clases presenciales de forma escalonada, indique el porcentaje de escuelas que imparten clases presenciales, el porcentaje de alumnos que asisten a clases presenciales y el número de días de escuela para cada etapa. Caso contrario, solo complete los tres parámetros de la Fase 1.>
H9: Fase 1 | J9: Fase 2 | L9: Fase 3 | N9: Fase 4 | P9: Fase 5 | R9: ="Average cross "&LOWER('Basic information about schools'!D43)&"" -> Average cross el primer semestre de 2021.
C10: Porcentaje de escuelas que imparten clases presenciales | H10: 0.2 | J10: 0.4 | L10: 0.9 | R10: =IF(ISERROR((pct_school_reopen_phase1 * N_school_day_phase1 + pct_school_reopen_phase2 * N_school_day_phase2 + pct_school_reopen_phase3 * N_school_day_phase3 + pct_school_reopen_phase4 * N_school_day_phase4 + pct_school_reopen_phase5 * N_school_day_phase5)/(N_school_day_phase1 + N_school_day_phase2 + N_school_day_phase3 + N_school_day_phase4 + N_school_day_phase5)), "", (pct_school_reopen_phase1 * N_school_day_phase1 + pct_school_reopen_phase2 * N_school_day_phase2 + pct_school_reopen_phase3 * N_school_day_phase3 + pct_school_reopen_phase4 * N_school_day_phase4 + pct_school_reopen_phase5 * N_school_day_phase5)/(N_school_day_phase1 + N_school_day_phase2 + N_school_day_phase3 + N_school_day_phase4 + N_school_day_phase5)) -> 0.5
C12: Porcentaje de alumnos que asisten a clases presenciales | H12: 0.4 | J12: 0.6 | L12: 0.95 | R12: =IF( ISERROR((pct_student_in_school_phase1 * N_school_day_phase1 + pct_student_in_school_phase2 * N_school_day_phase2 + pct_student_in_school_phase3 * N_school_day_phase3 + pct_student_in_school_phase4 * N_school_day_phase4 + pct_student_in_school_phase5 * N_school_day_phase5)/(N_school_day_phase1 + N_school_day_phase2 + N_school_day_phase3 + N_school_day_phase4 + N_school_day_phase5)), "", (pct_student_in_school_phase1 * N_school_day_phase1 + pct_student_in_school_phase2 * N_school_day_phase2 + pct_student_in_school_phase3 * N_school_day_phase3 + pct_student_in_school_phase4 * N_school_day_phase4 + pct_student_in_school_phase5 * N_school_day_phase5)/(N_school_day_phase1 + N_school_day_phase2 + N_school_day_phase3 + N_school_day_phase4 + N_school_day_phase5)) -> 0.65
C14: Cantidad de días de escuela (en días)* | H14: 30 | J14: 30 | L14: 30
C16: Porcentaje de docentes y personal escolar presente en la escuela** | H16: =H10 -> 0.2 | J16: =J10 -> 0.4 | L16: =L10 -> 0.9 | N16: =N10 -> 0 | P16: =P10 -> 0 | R16: =IF(ISERROR((pct_teacher_staff_in_school_phase1*N_school_day_phase1+pct_teacher_staff_in_school_phase2*N_school_day_phase2+pct_teacher_staff_in_school_phase3*N_school_day_phase3+pct_teacher_staff_in_school_phase4*N_school_day_phase4+pct_teacher_staff_in_school_phase5*N_school_day_phase5)/(N_school_day_phase1+N_school_day_phase2+N_school_day_phase3+N_school_day_phase4+N_school_day_phase5)),"",(pct_teacher_staff_in_school_phase1*N_school_day_phase1+pct_teacher_staff_in_school_phase2*N_school_day_phase2+pct_teacher_staff_in_school_phase3*N_school_day_phase3+pct_teacher_staff_in_school_phase4*N_school_day_phase4+pct_teacher_staff_in_school_phase5*N_school_day_phase5)/(N_school_day_phase1+N_school_day_phase2+N_school_day_phase3+N_school_day_phase4+N_school_day_phase5)) -> 0.5
C18: ="<*The number of school days in all phases should sum up to "&N_school_days&".>" -> <*The number of school days in all phases should sum up to 90.>
C19: <** La configuración predeterminada asume que la cantidad de docentes y personal escolar presente en la escuela es proporcional al número de escuelas que imparten clases presenciales. Usted puede revisar esta cifra en base a su contexto. Por ejemplo, si es más probable que reabran las escuelas más grandes, el porcentaje de docentes y personal escolar presente en la escuela debería ser más elevado que el porcentaje de escuelas que imparten clases presenciales. Si solo son algunos grados los que regresan a clases presenciales en estas escuelas reabiertas, el porcentaje de docentes y personal escolar presente en la escuela debe aproximarse al porcentaje de alumnos que asiste a clases presenciales.>
C24: Conteo de palabras
C25: =SUM(IF(LEN(TRIM(B1:T21))=0,0,LEN(TRIM(B1:T21))-LEN(SUBSTITUTE(B1:T21," ",""))+1)) -> 249

Sheet Qty of additional resources
F6: <Verificar si la configuración predeterminada tiene sentido para usted. Caso contrario, revísela en base a su contexto.>
C7: Medidas verificadas | D7: Recursos adicionales | E7: Configuración de los parámetros | G7: Notas
C8: Eje 1: medidas relacionadas con la seguridad de las operaciones
C9: Establecer medidas de limpieza y desinfección | D9: Desinfectante | G9: Ver Calculadora 2.1 para más detalles | J9: P101
D10: Contenedores vacíos para diluir los productos de limpieza y desinfección | E10: 1 | F10: contenedor(es) por limpiador (objetivo)
E11: 0.5 | F11: contenedor(es) por limpiador (disponibles ahora)
D12: pulverizadores con desinfectantes electrostáticos | E12: 1 | F12: pulverizador(es) por limpiador (objetivo)
E13: 0.5 | F13: pulverizador(es) por limpiador (disponibles ahora)
D14: Trapeadores, baldes y cepillos | E14: 1 | F14: equipo(s) por aula/baño/oficina (objetivo)
E15: 0.5 | F15: equipo(s) por aula/baño/oficina (disponibles ahora)
D16: Barras de jabón | E16: 1 | F16: barra(s) de jabón por aula/baño/oficina
D17: Agua | E17: =MAX(Calculators!I89/(Calculators!I90/5), Calculators!I154/Calculators!I155) - 1 -> 4 | F17: veces más que la cantidad usada en la etapa pre COVID-19 | G17: El aumento en el uso de agua se debe más que nada a una mayor frecuencia de limpieza y lavado de manos. Por ejemplo, si la limpieza se realizaba de forma semanal en la etapa pre COVID-19, pero en la etapa COVID-19 se lleva a cabo de manera diaria, entonces se necesita cuatro veces más agua (1 / (1/5) - 1). Si se les exigía a los alumnos lavarse las manos dos veces al día en la etapa pre COVID-19, pero ahora son cinco veces, entonces se necesita 1,5 veces más agua (5/2 - 1). El valor predeterminado es la cifra más elevada entre estas dos relaciones.
D18: Guantes de goma para el personal de limpieza | E18: 2 | F18: par(es) por limpiador (objetivo)
E19: 1 | F19: par(es) por limpiador (disponibles ahora)
D20: Batas desechables para el personal de limpieza | E20: 1 | F20: bata(s) por limpiador por día
D21: Batas y gorras reutilizables para el personal de limpieza | E21: 2 | F21: conjunto(s) por limpiador (objetivo) | G21: Un par por aula y un par por baño por limpiador.
E22: 1 | F22: conjunto(s) por limpiador (disponibles ahora)
D23: Personal de limpieza recién contratado | E23: =N_newly_hired_cleaner -> 10 | F23: empleado(s) a tiempo completo
D24: Horas extra para el personal de limpieza | E24: 0 | F24: hora(s) por limpiador por día
C25: Proporcionar equipos de protección personal | D25: Mascarillas reutilizables | G25: Ver Calculadora 4.1 para más detalles | J25: P102
D26: Mascarillas desechables | G26: Ver Calculadora 4.2 para más detalles
D27: Máscaras faciales | E27: 1 | F27: máscaras faciales por docente o personal escolar
C28: Proporcionar materiales para higienizar las manos | D28: Antisépticos de base alcohólica (al menos 70 por ciento alcohol) | G28: Ver Calculadora 3.1 para más detalles | J28: 103
D29: Dispensadores antisépticos | E29: 2 | F29: dispensador(s) por aula/baño/oficina (objetivo)
E30: 1 | F30: dispensador(s) por aula/baño/oficina (disponibles ahora)
D31: Jabón líquido | G31: Ver Calculadora 3.3 para más detalles
D32: Papel secante | E32: 2 | F32: rollo(s) por persona (incluidos docentes, alumnos y personal escolar) por mes (20 días de escuela) (objetivo)
E33: 1 | F33: rollo(s) por persona (incluidos docentes, alumnos y personal escolar) por mes (20 días de escuela) (disponibles ahora)
D34: Toallitas descartables registradas en la EPA | E34: 2 | F34: paquete(s) por persona por mes (20 días de escuela) (objetivo)
E35: 1 | F35: paquete(s) por persona por mes (20 días de escuela) (disponibles ahora)
D36: Botes de basura sin contacto/a pedal | E36: 2 | F36: bote(s) de basura por aula/baño/oficina (objetivo)
E37: 1 | F37: bote(s) de basura por aula/baño/oficina (disponibles ahora)
D38: Secador de manos | E38: 1 | F38: secador(es) de manos por baño (objetivo)
E39: 1 | F39: secador(es) de manos por baño (disponibles ahora)
C40: Realizar controles médicos in situ | D40: Sensores de temperatura automáticos | G40: Ver Calculadora 5 para más detalles | J40: P104
D41: Oxímetros | G41: Ver Calculadora 5 para más detalles
D42: Horas extra para el personal adecuadamente capacitado para realizar controles médicos | E42: 1 | F42: hora(s) por controlador por día | G42: Ver Calculadora 5 para el número de personas necesarias en una escuela
D43: Máscaras protectoras y guantes desechables para el personal encargado de los controles médicos | E43: 1 | F43: conjuntos por controlador por día
D44: Enfermeras a tiempo completo recién contratadas | E44: =N_newly_hired_nurse -> 10 | F44: empleado(s) a tiempo completo
D45: Horas extra para enfermeras a tiempo completo | E45: 1 | F45: hora(s) por enfermera por día
D46: Sala de emergencia/consultorio médico/salas de aislamiento | E46: 2 | F46: sala(s) por escuela
C47: Monitorear síntomas a través de encuestas realizadas a los padres | D47: Horas extra para los técnicos encargados de i) poner en marcha el monitoreo de salud en línea y la plataforma para presentar informes, y ii) preparar y difundir los informes diarios. | E47: 0 | F47: hora(s) por técnico por día | J47: P105
C48: Limitar el intercambio de objetos | D48: Materiales de enseñanza o aprendizaje que deben adquirirse para minimizar el intercambio. | E48: 100 | F48: conjunto(s) | G48: Indicar qué materiales de enseñanza o aprendizaje necesitan ser adquiridos. En caso necesario, agregar más filas al final de la tabla. | J48: P106
C49: Asegurar los espacios, materiales y estrategias para mantener la distancia física y social | D49: Costo de alquilar los espacios comunitarios sin utilizar. | E49: 0 | F49: metros cuadrados por escuela por día | G49: Reglas generales para determinar la superficie necesaria: 1) Mantener una distancia de al menos un metro cuadrado entre todas las personas presentes en la escuela. 2) La creación de burbujas significa mantener a los mismos grupos pequeños de alumnos (diez o menos) junto al mismo personal por el mayor tiempo posible. | J49: P107
C50: Establecer barreras y guías físicas | D50: Barreras físicas en las aulas | E50: 1 | F50: Pantalla(s) de plástico flexible por alumno | J50: P108
E51: 0.8 | F51: de todas las escuelas reabiertas eligen instalar las barreras físicas
D52: Barreras físicas entre los lavabos del baño | E52: 5 | F52: lavabo(s) por baño
E53: 0.8 | F53: de todas las escuelas reabiertas eligen instalar las barreras físicas
D54: Cintas para crear señales en los pisos y aceras | E54: 10 | F54: rollo(s) de cinta por escuela
D55: Carteles o señales en las paredes | E55: 10 | F55: cartel(es) por escuela
C56: Instruir a alumnos, docentes, personal y padres respecto a la seguridad de las operaciones escolares | D56: Horas extra para los docentes y el personal que participen en la capacitación relacionada con la seguridad de las operaciones. | E56: 1 | F56: hora(s) por docente o miembro del personal | J56: P109
C57: Mantener un nivel de colaboración y coordinación apropiados con las autoridades de salud pública locales. | D57: Batas o ropa quirúrgica para las enfermeras escolares | E57: 2 | F57: bata(s) o ropa quirúrgica por enfermera (objetivo) | J57: P110
E58: 1 | F58: bata(s) o ropa quirúrgica por enfermera (disponibles ahora)
D59: EPP necesario para atender casos sospechosos | E59: 1 | F59: conjuntos de batas, guantes desechables y máscaras por caso sospechoso
E60: 2 | F60: casos sospechosos por escuela por día
C61: Adaptar el transporte | D61: Máquinas de humo para autobuses | E61: 1 | F61: máquina de humo por conductor de autobús (objetivo) | J61: P111
E62: 0.5 | F62: máquina de humo por conductor de autobús (disponibles ahora)
D63: Desinfectante para autobuses | G63: Ver Calculadora 2.2
D64: Sensores de temperatura automáticos para controlar la temperatura de los alumnos antes de subir a bordo. | E64: 1 | F64: sensor(es) de temperatura por conductor de autobús
D65: Antisépticos de base alcohólica (al menos 70 por ciento alcohol) | G65: Ver Calculadora 3.2
D66: Dispensadores antisépticos | E66: 2 | F66: dispensador(es) por conductor de autobús (objetivo)
E67: 1 | F67: dispensador(es) por conductor de autobús (disponibles ahora)
D68: Combustible adicional | E68: 0.5 | F68: de la capacidad normal para adherir a las directrices sobre distanciamiento físico | G68: ="Since school buses is runing at "&ROUND(pct_bus_capacity, 2)*100&"% of the full capacity, the amount of fuel needed is "&ROUND(1/pct_bus_capacity,1)&" times of the amount needed before, or ("&ROUND(1/pct_bus_capacity,1)& -1&") times more than the fuel cost in the Pre-COVID-19 era to transport the same number of students." -> Since school buses is runing at 50% of the full capacity, the amount of fuel needed is 2 times of the amount needed before, or (2-1) times more than the fuel cost in the Pre-COVID-19 era to transport the same number of students.
C69: Adaptar la ventilación | D69: Actualizar sistemas de climatización | E69: 0.1 | F69: de las escuelas reabiertas deben actualizar sus sistemas de climatización | J69: P112
C70: Reorganizar el programa de almuerzo | D70: Batas, delantales y gorros para el personal de cocina | E70: 1 | F70: conjunto(s) por trabajador de cocina (objetivo) | J70: P113
E71: 1 | F71: conjunto(s) por trabajador de cocina (disponibles ahora)
D72: Utensilios desechables | E72: 1 | F72: conjunto(s) por alumno para aquellos que almuerzan en la escuela (objetivo) | G72: Si una escuela ha estado proporcionando utensilios desechables, no pareciera que necesitase más debido a la respuesta a la COVID-19. Podrían ahorrarse algunos recursos respecto al anterior cierre escolar.
E73: 1 | F73: conjunto(s) por alumno para aquellos que almuerzan en la escuela (disponibles ahora)
D74: Platos desechables | E74: 1 | F74: Plato(s) desechable(s) por alumno para aquellos que almuerzan en la escuela (objetivo) | G74: Si una escuela ha estado proporcionando platos desechables, no pareciera que se necesitase más a causa de la respuesta a la COVID-19. Podrían ahorrarse algunos recursos respecto al anterior cierre escolar.
E75: 1 | F75: plato(s) desechable(s) por alumno para aquellos que almuerzan en la escuela (disponibles ahora)
C76: Eje 2: medidas para sostener el aprendizaje
C77: Posibilitar el desarrollo profesional de los docentes. | D77: Horas extra para los docentes que participen en las sesiones de capacitación sobre pedagogía | E77: 2 | F77: sesiones por docente que participa en las sesiones de capacitación sobre pedagogía | J77: P201
E78: 1 | F78: hora(s) por sesión
E79: 1 | F79: de todos los docentes participan en las sesiones de capacitación sobre pedagogía
D80: Compensación para los capacitadores externos que proporcionen sesiones de capacitación | E80: 50 | F80: capacitador(es) externo(s)
E81: 20 | F81: sesiones por capacitador
E82: 1 | F82: hora(s) por sesión
D83: Materiales para la capacitación profesional de los docentes | E83: 1 | F83: conjunto(s) por docente
C84: Mantener los enfoques flexibles o parciales de aprendizaje remoto | D84: Plataformas de aprendizaje remotas | G84: Ver Calculadora 6 para más detalles | J84: P202
D85: Compensación para acceder a Internet | E85: 0.4 | F85: de todos los docentes reciben compensación para acceder a Internet
E86: 0.5 | F86: de todos los alumnos reciben compensación para acceder a Internet
D87: Compensación para planes de datos de los teléfonos celulares | E87: 0.4 | F87: de todos los docentes reciben compensación para planes de datos de los teléfonos celulares
E88: 0.5 | F88: de todos los alumnos reciben compensación para planes de datos de los teléfonos celulares
D89: Computadoras de escritorio | E89: 100 | F89: computadoras de escritorio
D90: Computadoras portátiles | E90: 200 | F90: computadoras portátiles
D91: Tabletas | E91: 200 | F91: tabletas
D92: Teléfonos | E92: 200 | F92: teléfonos
D93: Técnicos recién contratados | E93: =N_newly_hired_technician -> 10 | F93: empleado(s) a tiempo completo
D94: Horas extra para técnicos u otro personal que proporcione asistencia técnica | E94: 1 | F94: hora(s) por técnico por día
C95: Realizar evaluaciones de diagnóstico | D95: Importe de la licencia para las evaluaciones | E95: 1 | F95: licencia(s) | G95: Indique cómo se cobra la licencia: p. ej., ¿por escuela o por alumno? | J95: P203
D96: Impresión de las evaluaciones (si se entregan en papel) | E96: 2 | F96: página(s) a imprimir por cada alumno evaluado
D97: Compensación para especialistas en evaluación externos para elaborar las evaluaciones y proporcionar capacitación | E97: 10 | F97: especialistas en evaluación externos
E98: 10 | F98: hora(s) por especialista en evaluación
C99: Aumentar la intensidad y la diferenciación (aprendizaje personalizado) | D99: Importe de la licencia para los programas de recuperación y aceleración | E99: 1 | F99: licencia(s) | G99: Indique cómo se cobra la licencia. | J99: P204
D100: Pago para los auxiliares pedagógicos que proporcionan aprendizaje personalizado en forma de clases de refuerzo
C101: Extender los horarios | D101: Horas extra para los docentes para proporcionar instrucciones | E101: 8 | F101: hora(s) por día para esos días extendidos | J101: P205
E102: 30 | F102: día(s) extendidos
C103: Contratar nuevos docentes, reorganizar los turnos de trabajo o extender el horario de trabajo de los docentes | D103: Docentes adicionales contratados para asegurar grupos más pequeños y sustituir a colegas enfermos | E103: =N_newly_hired_teacher -> 50 | F103: empleado(s) a tiempo completo | J103: P206
D104: Horas extra para que los docentes actuales sustituyan a sus colegas enfermos
C105: Eje 3: medidas para apoyar el bienestar y la recuperación emocional
C106: Proporcionar apoyo y asesoramiento psicosocial exclusivo. | D106: Asesores recién contratados | E106: =N_newly_hired_counselor -> 20 | F106: empleado(s) a tiempo completo | J106: P301
D107: Horas extra para asesores | E107: 0 | F107: hora(s) por asesor por día
D108: Trabajadores sociales recién contratados | E108: =N_newly_hired_social_worker -> 20 | F108: empleado(s) a tiempo completo
D109: Horas extra para trabajadores sociales | E109: 0 | F109: hora(s) por trabajador social por día
D110: Psicólogos recién contratados | E110: =N_newly_hired_psychologist -> 20 | F110: empleado(s) a tiempo completo
D111: Horas extra para psicólogos | E111: 0 | F111: hora(s) por psicólogo por día
C112: Adoptar programas de aprendizaje social y emocional (ASE) | D112: Horas extra para los docentes que participen en las sesiones de capacitación ASE | E112: 1 | F112: sesiones por docente que participa en las sesiones de capacitación ASE | J112: P302
E113: 1 | F113: hora(s) por sesión de capacitación
E114: 0.2 | F114: de todos los docentes de la escuela participan en las sesiones de capacitación ASE
D115: Horas extra para los docentes que promueven el ASE | E115: 1 | F115: hora(s) por docente por día para aquellos que trabajan horas extra para promover el ASE
E116: 0.2 | F116: de todos los docentes de la escuela trabajan horas extra para promover el ASE
D117: Importe de la licencia para los programas ASE adoptados | E117: 4 | F117: licencia(s) | G117: Indique cómo se cobra la licencia: p. ej., ¿por escuela o por alumno? Si se elabora un programa ASE para la respuesta a la COVID-19, indique el costo de elaboración.
C118: Eje 4: medidas para llegar a los más marginados
C119: Proporcionar apoyo adecuado para las necesidades de recuperación, especialmente entre alumnos desfavorecidos y vulnerables. | D119: Equipo de protección especial o adaptado | E119: 10 | F119: conjunto(s) por escuela | G119: Especifique en base al contexto. Para las máscaras faciales transparentes, ver Calculadora 3.2 | J119: P401
C120: Llevar a cabo campañas de rematriculación y apoyo envolvente para evitar la deserción. | D120: Tiempo que le lleva al personal diseñar e implementar las campañas de matriculación | E120: 20 | F120: hora(s) por movilizador social | J120: P402
D121: Gastos de transporte para las campañas | E121: 120 | F121: viaje(s)
D122: Programas de alimentación | E122: 2000 | F122: beneficiario(s)
D123: Provisión de uniformes escolares | E123: 2000 | F123: cantidad de uniformes
D124: Eliminación o exención de la matrícula escolar | E124: 2000 | F124: exenciones de la matrícula escolar
D125: <Especifique en base al apoyo proporcionado>
C126: Monitorear y planificar el ausentismo | D126: Horas extra para que el personal monitoree y planifique el ausentismo (si procede) | E126: 2 | F126: miembros del personal para monitorear el ausentismo | J126: P403
E127: 1 | F127: hora(s) por día

Sheet Calculators
M5: <Completar las celdas de entrada>
C7: Calculadoras
C9: Índice
D11: =C19 -> Calculadora 1. Cómo calcular la cantidad de docentes y personal nuevo que se debe contratar.
D12: =C70 -> Calculadora 2. Cómo calcular la cantidad de desinfectante necesario
D13: =C127 -> Calculadora 3. Cómo calcular la cantidad de antiséptico y jabón líquido para el lavado de manos
D14: =C166 -> Calculadora 4. Cómo calcular la cantidad de mascarillas
D15: =C196 -> Calculadora 5. Cómo calcular la cantidad de sensores de temperatura automáticos, oxímetros y personal encargado de los controles médicos
D16: =C211 -> Calculadora 6: Cómo estimar el costo de desarrollar una plataforma de aprendizaje remoto
C19: Calculadora 1. Cómo calcular la cantidad de docentes y personal nuevo que se debe contratar.
D20: <Tenga en cuenta que los números ingresados únicamente representan la demanda de docentes y personal nuevo. La cantidad real de personas que pueden contratarse por primera vez está determinada tanto por la demanda como la oferta de docentes y personal nuevo. Cuando finalice estos cálculos, tenga en cuenta la viabilidad de contratar docentes y personal nuevo a gran escala en un período corto de tiempo en base a su contexto.>
D22: 1.1. Docentes | E22: a) Asegurar un tamaño de clase más pequeño | T22: P206
F23: Tamaño actual de la clase | K23: =N_student_per_class -> 20 | L23: alumnos/clase
F24: tamaño objetivo de la cohorte | K24: 10 | L24: alumnos/cohorte | N24: <La creación de burbujas significa mantener a los mismos grupos pequeños de alumnos (diez o menos) junto al mismo personal por el mayor tiempo posible. >
F25: Cantidad de nuevos docentes que debe contratarse para este fin | K25: =IF(ISERROR((K23/K24 - 1) * N_teacher_current), "", (K23/K24 - 1) * N_teacher_current) -> 1000 | L25: docentes
E27: b) Sustituir a los docentes enfermos
F28: ="% of current teachers who may take sick leave during "&LOWER('Basic information about schools'!D43)&"" -> % of current teachers who may take sick leave during el primer semestre de 2021. | M28: 0.05
F29: Días promedio de licencia por enfermedad | M29: 20 | N29: día(s)
F30: Cantidad de horas por día laboral | M30: 8 | N30: hora(s)
F31: Cantidad total de horas que deben ser sustituidas | M31: =M28*N_teacher_current*M29*M30 -> 8000 | N31: hora(s)
F32: Porcentaje de esas horas que pueden cubrirse con los docentes actuales | M32: 0.1
F33: Cantidad de nuevos docentes que debe contratarse para este fin | M33: =IF(ISERROR(N_hour_substitute*(1-M32)/(8*N_school_days)) = TRUE, "", N_hour_substitute*(1-M32)/(8*N_school_days)) -> 10 | N33: docente(s)
E35: Cantidad total de docentes que deben ser contratados para asegurar grupos más pequeños y sustituir a colegas enfermos | M35: =IF(ISERROR(K25+M33) = TRUE, "", K25+M33) -> 1010 | N35: docente(s)
D37: 1.2. Auxiliares pedagógicos necesarios para proporcionar aprendizaje personalizado en forma de clases de refuerzo | T37: P204
E39: Cantidad de horas de clase de refuerzo a las que un alumno debe asistir por día | L39: 1 | M39: hora(s) por día
E40: Formato de las clases de refuerzo | K40: Un auxiliar por cada | L40: 1.5 | M40: alumno(s)
E41: Cantidad total de horas laborales para los auxiliares pedagógicos | L41: =IF(ISERROR(IF(personalized_learning = "Reopened schools", pct_student_personalized_learning * N_student * pct_student_in_school * N_hour_tutoring_per_student_per_day * (1/student_aid_ratio), pct_student_personalized_learning * N_student * N_hour_tutoring_per_student_per_day * (1/student_aid_ratio))) = TRUE, "", IF(personalized_learning = "Reopened schools", pct_student_personalized_learning * N_student * pct_student_in_school * N_hour_tutoring_per_student_per_day * (1/student_aid_ratio), pct_student_personalized_learning * N_student * N_hour_tutoring_per_student_per_day * (1/student_aid_ratio))) -> 1333.333333 | M41: hora(s)
E42: Cantidad de horas laborales por día | L42: 8 | M42: hora(s) por día
E43: Cantidad total de auxiliares pedagógicos necesarios | L43: =IF(ISERROR(L41/L42) = TRUE, "", L41/L42) -> 166.6666667 | M43: auxiliar(es) pedagógico(s)
E44: Cantidad de nuevos auxiliares pedagógicos que se deben contratar | L44: =IF(ISERROR(IF((L43-'Basic information about schools'!I64)>0, L43-'Basic information about schools'!I64, "Sufficient number of")) = TRUE, "", IF((L43-'Basic information about schools'!I64)>0, L43-'Basic information about schools'!I64, "Sufficient number of")) -> 66.66666667 | M44: auxiliar(es) pedagógico(s) | O44: Cantidad suficiente de
D46: 1.3. Personal no docente
D48: Reglas generales para determinar la cantidad | L48: <Dejar la celda en blanco si no hay un requisito mínimo> | P48: <Dejar la celda en blanco si no hay un requisito máximo>
C50: Personal de limpieza | E50: Trabajan en | F50: 1 | G50: escuela(s), | H50: 1 | I50: limpiador(es) por cada | J50: 150 | K50: alumnos, | L50: con un mín. de | M50: 2 | N50: =IF(F50>1, "per "&F50&" schools and a max of", "per school and a max of") -> per school and a max of | Q50: 10 | R50: =IF(F50>1, "per "&F50&" schools", "per school") -> per school
C51: Enfermeras escolares | E51: Trabajan en | F51: 1 | G51: escuela(s), | H51: 1 | I51: enfermera(s) por cada | J51: 150 | K51: alumnos, | L51: con un mín. de | M51: 2 | N51: =IF(F51>1, "per "&F51&" schools and a max of", "per school and a max of") -> per school and a max of | Q51: 10 | R51: =IF(F51>1, "per "&F51&" schools", "per school") -> per school
C52: Técnicos | E52: Trabajan en | F52: 1 | G52: escuela(s), | H52: 1 | I52: técnico(s) por cada | J52: 150 | K52: alumnos, | L52: con un mín. de | M52: 2 | N52: =IF(F52>1, "per "&F52&" schools and a max of", "per school and a max of") -> per school and a max of | Q52: 10 | R52: per school
C53: Asesores | E53: Trabajan en | F53: 2 | G53: escuela(s), | H53: 1 | I53: asesor(es) por cada | J53: 250 | K53: alumnos, | L53: con un mín. de | N53: =IF(F53>1, "per "&F53&" schools and a max of", "per school and a max of") -> per 2 schools and a max of | R53: per 2 schools
C54: Psicólogos | E54: Trabajan en | F54: 2 | G54: escuela(s), | H54: 1 | I54: psicólogo(s) por cada | J54: 250 | K54: alumnos, | L54: con un mín. de | N54: =IF(F54>1, "per "&F54&" schools and a max of", "per school and a max of") -> per 2 schools and a max of | R54: per 2 schools
C55: Trabajadores sociales | E55: Trabajan en | F55: 5 | G55: escuela(s), | H55: 1 | I55: trabajador(es) social(es) por cada | J55: 250 | K55: alumnos, | L55: con un mín. de | N55: per 5 schools and a max of | R55: per 5 schools
C56: Movilizador social | E56: Trabajan en | F56: 5 | G56: escuela(s), | H56: 1 | I56: movilizador(es) social(es) por cada | J56: 500 | K56: alumnos, | L56: con un mín. de | N56: per 5 schools and a max of | R56: per 5 schools
D58: Cantidad de alumnos en una escuela | I58: =N_student_per_school -> 200 | J58: <La configuración predeterminada es la cantidad promedio de alumnos en una escuela.>
E60: Necesarios por escuela | G60: Disponibles actualmente por escuela | J60: Nuevo personal que debe contratarse por escuela
C61: Personal de limpieza | E61: =IF(ISERROR(IF(AND(Q50 <>"", I$58*F50/J50*H50>Q50), Q50, IF(AND(M50 <>"", I$58*F50/J50*H50 <M50), M50, ROUNDUP(I$58*F50/J50*H50,0)))/F50) = TRUE, "", IF(AND(Q50 <>"", I$58*F50/J50*H50>Q50), Q50, IF(AND(M50 <>"", I$58*F50/J50*H50 <M50), M50, ROUNDUP(I$58*F50/J50*H50,0)))/F50) -> 2 | G61: =IF(ISERROR(N_cleaner_current/N_school) = TRUE, "", N_cleaner_current/N_school) -> 2 | J61: =IF(ISERROR(IF(E61-G61 >0, E61-G61, "The number of staff is sufficient")) = TRUE, "", IF(E61-G61 >0, E61-G61, "The number of staff is sufficient")) -> The number of staff is sufficient | L61: La cantidad de personal es suficiente
C62: Enfermeras escolares | E62: =IF(ISERROR(IF(AND(Q51 <>"", I$58*F51/J51*H51>Q51), Q51, IF(AND(M51 <>"", I$58*F51/J51*H51 <M51), M51, ROUNDUP(I$58*F51/J51*H51,0)))/F51) = TRUE, "", IF(AND(Q51 <>"", I$58*F51/J51*H51>Q51), Q51, IF(AND(M51 <>"", I$58*F51/J51*H51 <M51), M51, ROUNDUP(I$58*F51/J51*H51,0)))/F51) -> 2 | G62: =IF(ISERROR(N_nurse_current/N_school) = TRUE, "", N_nurse_current/N_school) -> 2 | J62: =IF(ISERROR(IF(E62-G62 >0, E62-G62, "The number of staff is sufficient")) = TRUE, "", IF(E62-G62 >0, E62-G62, "The number of staff is sufficient")) -> The number of staff is sufficient
C63: Técnicos | E63: 2 | G63: =IF(ISERROR(N_technician_current / N_school) = TRUE, "", N_technician_current / N_school) -> 2 | J63: The number of staff is sufficient
C64: Asesores | E64: 1 | G64: =IF(ISERROR(N_counselor_current/N_school) = TRUE, "", N_counselor_current/N_school) -> 1.6 | J64: The number of staff is sufficient
C65: Psicólogos | E65: 1 | G65: =IF(ISERROR(N_psychologist_current/N_school) = TRUE, "", N_psychologist_current/N_school) -> 1.6 | J65: The number of staff is sufficient
C66: Trabajadores sociales | E66: 0.8 | G66: =IF(ISERROR(N_social_worker_current/N_school), "", N_social_worker_current/N_school) -> 1.6 | J66: The number of staff is sufficient
C67: Movilizador social | E67: 0.4 | G67: =IF(ISERROR(N_social_worker_current/N_school) = TRUE, "", N_social_worker_current/N_school) -> 1.6 | J67: The number of staff is sufficient
C70: Calculadora 2. Cómo calcular la cantidad de desinfectante necesario
D72: 2.1. Para una escuela típica
D73: Factor 1: Áreas que deben ser desinfectadas mediante pulverizador | I73: =IF(ISERROR(I79*N_room_per_school) = TRUE, "", I79*N_room_per_school) -> 450 | J73: metro(s) cuadrado(s) | L73: <Este es un cálculo conservador dado que asumimos que una vez que la escuela reabre, todas sus instalaciones deben ser desinfectadas, independientemente de cuántos alumnos asisten a la escuela.>
D75: Superficie de un salón de clases típico
D76: Largo del piso en un salón de clases típico | I76: 4 | J76: metro(s)
D77: Ancho del piso en un salón de clases típico | I77: 3 | J77: metro(s)
D78: Superficie del piso en un salón de clases típico | I78: =I76*I77 -> 12 | J78: metro(s) cuadrado(s) | L78: <Largo x ancho>
D79: Superficie del salón de clases (incluidos paredes, piso y techo) | I79: =2.5*I78 -> 30 | J79: metro(s) cuadrado(s) | L79: <La regla general es 2,5 veces la superficie del piso>
D81: La cantidad total de habitaciones (incluidos aulas, baños y oficinas) a desinfectar en una escuela típica | I81: =IF(ISERROR(('Basic information about schools'!G53/'Basic information about schools'!G52*(1+1/'Basic information about schools'!G96+1/'Basic information about schools'!G97))) = TRUE, "", ('Basic information about schools'!G53/'Basic information about schools'!G52*(1+1/'Basic information about schools'!G96+1/'Basic information about schools'!G97))) -> 15 | J81: Habitaciones | L81: <Cantidad promedio de aulas por escuela x (1 + 1/relación aulas-baños + 1/relación aulas-oficinas)>
D84: Factor 2: Cantidad de solución mixta necesaria | I84: 0.05 | J84: litro(s) por metro cuadrado | L84: <Ver etiqueta del producto>
D86: Factor 3: Proporción de la dilución | I86: 0.05 | L86: <Ver etiqueta del producto. La relación es la cantidad de desinfectante concentrado dividida por la cantidad de agua necesaria.>
D88: Factor 4: Frecuencia de la desinfección
D89: En la etapa con COVID-19 | I89: 1 | J89: vez/veces por día | L89: <Se recomienda limpiar y desinfectar las instalaciones escolares al menos una vez al día.>
D90: En la etapa pre COVID-19 | I90: 1 | J90: vez/veces por semana
D92: La cantidad de desinfectante necesaria para atomizar una escuela típica por día
D93: En la etapa con COVID-19 | I93: =IF(ISERROR(I73*I84*I86*I89) = TRUE, "", I73*I84*I86*I89) -> 1.125 | J93: litro(s) | L93: <Factor 1 x Factor 2 x Factor 3 x Factor 4 para la etapa con COVID-19>
D94: En la etapa pre COVID-19 | I94: =IF(ISERROR(I73*I84*I86*I90/5) = TRUE, "", I73*I84*I86*I90/5) -> 0.225 | J94: litro(s) | L94: <Factor 1 x Factor 2 x Factor 3 x Factor 4 para la etapa pre COVID-19>
D95: Brecha | I95: =IF(ISERROR(I93-I94) = TRUE, "", I93-I94) -> 0.9 | J95: litro(s)
D98: 2.2. Para un autobús escolar
D99: Factor 1: Áreas que deben ser desinfectadas mediante pulverizador | I99: =I103 -> 60.996 | J99: metro(s) cuadrado(s)
E100: Largo del autobús | I100: 8 | J100: metros | L100: <Minibús escolar: 6,1-7,6 metros; autobús escolar mediano: 7,6-10,7 metros; autobús escolar grande: más de 10,7 metros>
E101: Ancho del autobús | I101: 2.55 | J101: metros
E102: Altura del autobús | I102: 2.99 | J102: metros
E103: Superficie del autobús (incluidas paredes, piso, techo y asientos) | I103: =I100*I101*I102 -> 60.996 | J103: metro(s) cuadrado(s) | L103: <Largo x ancho x altura>
D105: Factor 2: Cantidad de solución mixta necesaria | I105: 0.05 | J105: litro(s) por metro cuadrado | L105: <Ver etiqueta del producto>
D107: Factor 3: Proporción de la dilución | I107: 0.05 | L107: <Ver etiqueta del producto. La relación es la cantidad de desinfectante concentrado dividida por la cantidad de agua necesaria.>
D109: Factor 4: Frecuencia de la desinfección
D110: En la etapa con COVID-19 | I110: =1 -> 1 | J110: veces por viaje
D111: En la etapa pre COVID-19 | I111: 1 | J111: veces por semana (p. ej., dos veces al día, cinco veces por semana)
D113: La cantidad de desinfectante necesaria para atomizar un autobús por día
D114: En la etapa con COVID-19 | I114: =I99*I105*I107*I110 -> 0.15249 | J114: litro(s) | L114: <Factor 1 x Factor 2 x Factor 3 x Factor 4 para la etapa con COVID-19>
D115: En la etapa pre COVID-19 | I115: =I99*I105*I107*I111/10 -> 0.015249 | J115: litro(s) | L115: <Factor 1 x Factor 2 x Factor 3 x Factor 4 para la etapa pre COVID-19>
D116: Brecha | I116: =Disinfectant_bus_per_trip-I115 -> 0.137241 | J116: litro(s)
C118: Notas. | D118: Si usted no está seguro de algunas cifras, intente sobreestimarlas.
C119: Fuentes. | D119: Mitigación de enfermedades en escuelas, guarderías y universidades con sanitizantes y desinfectantes | L119: https://www.youtube.com/watch?v=xhS-AhciAfM&feature=youtu.be
D120: Directrices para limpiar y desinfectar: Espacios públicos, espacios de trabajo, empresas, escuelas y hogares | L120: https://www.cdc.gov/coronavirus/2019-ncov/community/pdf/reopening_america_guidance.pdf
D121: Limpieza y desinfección de instalaciones comunitarias | L121: https://www.cdc.gov/coronavirus/2019-ncov/community/organizations/cleaning-disinfection.html
D122: Cálculos y aplicación de desinfectantes | L122: http://www.fao.org/3/al877e/al877e00.pdf
D123: Calculadora del costo de desinfectar | L123: https://blog.midwestind.com/disinfecting-cost-calculator/
D124: ¿Cuál es el tamaño promedio de un autobús escolar? | L124: https://www.trackschoolbus.com/blog/what-is-the-average-size-of-a-school-bus/#:~:text=The%20length%20of%20a%20normal,a%20width%20of%206%20feet.
C127: Calculadora 3. Cómo calcular la cantidad de antiséptico y jabón líquido para el lavado de manos
D129: 3.1. Antiséptico para el lavado de manos en la escuela
E130: Factor 1: Cantidad de antiséptico por lavado de manos | I130: 3 | J130: mL | K130: <Se recomiendan 3 mL>
E131: Factor 2: Frecuencia de uso del antiséptico
E132: En la etapa con COVID-19 | I132: 5 | J132: veces por día por persona
E133: En la etapa pre COVID-19 | I133: 2 | J133: veces por día por persona
E135: Cantidad de antiséptico necesario por persona por día
E136: En la etapa con COVID-19 | I136: =I130*I132 -> 15 | J136: mL
E137: En la etapa pre COVID-19 | I137: =I130*I133 -> 6 | J137: mL
E138: Brecha | I138: =Antiseptic_per_person_per_day-I137 -> 9 | J138: mL
D140: 3.2. Antiséptico para el lavado de manos antes de abordar el autobús escolar
E141: Factor 1: Cantidad de antiséptico por lavado de manos | I141: 3 | J141: mL | K141: <Se recomiendan 3 mL>
E142: Factor 2: Frecuencia de uso del antiséptico
E143: En la etapa con COVID-19 | I143: 2 | J143: veces por día por persona
E144: En la etapa pre COVID-19 | I144: 0 | J144: veces por día por persona
E146: Cantidad de antiséptico necesario por persona por día
E147: En la etapa con COVID-19 | I147: =I141*I143 -> 6 | J147: mL | K147: <Factor 1 x Factor 2 para la etapa con COVID-19>
E148: En la etapa pre COVID-19 | I148: =I141*I144 -> 0 | J148: mL | K148: <Factor 1 x Factor 2 para la etapa pre COVID-19>
E149: Brecha | I149: =Antiseptic_per_person_per_day_bus-I148 -> 6 | J149: mL
D151: 3.3. Jabón líquido para el lavado de manos en la escuela
E152: Factor 1: Cantidad de jabón líquido por lavado de manos | I152: 2 | J152: mL | K152: <Un rango razonable es entre 1 y 3 mL>
E153: Factor 2: Frecuencia del lavado de manos
E154: En la etapa con COVID-19 | I154: 5 | J154: veces por día por persona
E155: En la etapa pre COVID-19 | I155: 2 | J155: veces por día por persona
E157: Cantidad de jabón líquido necesario por persona por día
E158: En la etapa con COVID-19 | I158: =I152*I154 -> 10 | J158: mL | K158: <Factor 1 x Factor 2 para la etapa con COVID-19>
E159: En la etapa pre COVID-19 | I159: =I152*I155 -> 4 | J159: mL | K159: <Factor 1 x Factor 2 para la etapa pre COVID-19>
E160: Brecha | I160: =Liquid_soap_per_person_per_day-I159 -> 6 | J160: mL
C162: Fuentes. | D162: La cantidad de jabón como una variable en el lavado de manos | L162: https://pubmed.ncbi.nlm.nih.gov/3654132/
D163: La cobertura de las manos del gel de base alcohólica varía: El volumen y el tamaño de la mano importan | L163: https://www.ajicjournal.org/article/S0196-6553(16)30690-3/abstract
C166: Calculadora 4. Cómo calcular la cantidad de mascarillas
C168: Consejos para el uso de mascarillas por parte de los niños de la comunidad en el contexto de la pandemia de COVID-19
C169: 1) Los niños menores de cinco años no deberían tener que utilizar mascarillas. 2) De los seis a los once años, el uso de la mascarilla debe basarse en: • Si hay una tasa elevada de transmisión en el área • Capacidad del niño de utilizar la mascarilla de forma segura y apropiada • Acceso a mascarillas limpias y de reemplazo • Adecuada supervisión por parte de un adulto • Impacto potencial sobre el aprendizaje y el desarrollo psicosocial • Condiciones específicas e interacciones con personas de mayor riesgo 3) Los niños de doce años y más deben utilizar una mascarilla bajo las mismas condiciones que los adultos 4) Los docentes y el personal auxiliar deben utilizar mascarillas cuando no puedan garantizar una distancia de al menos un metro respecto a otras personas o si hay una elevada tasa de transmisión en el área
D171: 4.1. Mascarillas reutilizables
D173: Tipo de mascarilla | E173: Población elegible | H173: Cantidad de personas | J173: Porcentaje presente en la escuela | L173: Cantidad de mascarillas por persona | N173: Cantidad total de mascarillas | P173: Precio | R173: Costo
D174: Mascarillas pequeñas | E174: Niños de entre 3 y 5 años | J174: =pct_student_in_school -> 0.65 | N174: =IF(ISERROR(H174*J174*L174) = TRUE, "", H174*J174*L174) -> 0 | R174: =IF(ISERROR(N174*P174) = TRUE, "", N174*P174) -> 0
D175: Mascarillas mediana | E175: Niños de entre 6 y 11 años | J175: =pct_student_in_school -> 0.65 | N175: =IF(ISERROR(H175*J175*L175) = TRUE, "", H175*J175*L175) -> 0 | R175: =IF(ISERROR(N175*P175) = TRUE, "", N175*P175) -> 0
D176: Mascarillas grandes | E176: Alumnos mayores de 12 años | J176: =pct_student_in_school -> 0.65 | N176: 0 | R176: 0
D177: Mascarillas grandes | E177: Docentes y personal escolar | H177: =N_teacher_and_staff -> 2240 | J177: =pct_teacher_staff_in_school -> 0.5 | L177: 1 | N177: 1120 | P177: 0.5 | R177: 560
D178: Máscaras transparentes | E178: Los docentes y el personal que interactúan regularmente con los alumnos que son sordos o tienen dificultades auditivas, alumnos que están aprendiendo a leer, que tienen alguna discapacidad, y los que dependen de la lectura de labios como parte de su aprendizaje. | J178: =pct_teacher_staff_in_school -> 0.5 | N178: 0 | R178: 0
D180: Total | N180: =SUM(N174:N177) -> 1120 | P180: =IF(ISERROR((N174*P174+N175*P175+N176*P176+N177*P177+N178*P178)/SUM(N174:N178)) = TRUE, "", (N174*P174+N175*P175+N176*P176+N177*P177+N178*P178)/SUM(N174:N178)) -> 0.5 | R180: =SUM(R174:R177) -> 560
D183: 4.2. Mascarillas desechables
D185: Tipo de mascarilla | E185: Población elegible | H185: Cantidad de personas | J185: Porcentaje presente en la escuela | L185: Cantidad de mascarillas por persona por día | N185: Cantidad total de mascarillas | P185: Precio | R185: Costo
D186: Mascarillas pequeñas | E186: Niños de entre 3 y 5 años | J186: =pct_student_in_school -> 0.65 | N186: =IF(ISERROR(H186*J186*L186* N_school_days) = TRUE, "", H186*J186*L186* N_school_days) -> 0 | R186: =IF(ISERROR(N186*P186) = TRUE, "", N186*P186) -> 0
D187: Mascarillas mediana | E187: Niños de entre 6 y 11 años | J187: =pct_student_in_school -> 0.65 | N187: =IF(ISERROR(H187*J187*L187* N_school_days) = TRUE, "", H187*J187*L187* N_school_days) -> 0 | R187: =IF(ISERROR(N187*P187) = TRUE, "", N187*P187) -> 0
D188: Mascarillas grandes | E188: Alumnos mayores de 12 años | J188: =pct_student_in_school -> 0.65 | N188: =IF(ISERROR(H188*J188*L188* N_school_days) = TRUE, "", H188*J188*L188* N_school_days) -> 0 | R188: 0
D189: Mascarillas grandes | E189: Docentes y personal escolar | H189: =N_teacher_and_staff * pct_teacher_staff_in_school -> 1120 | J189: =pct_teacher_staff_in_school -> 0.5 | L189: 1 | N189: =IF(ISERROR(H189*J189*L189* N_school_days) = TRUE, "", H189*J189*L189* N_school_days) -> 50400 | R189: 0
D191: Total | N191: =SUM(N186:N189) -> 50400 | P191: =IF(ISERROR((N186*P186+N187*P187+N188*P188+N189*P189)/SUM(N186:N189)) = TRUE, "", (N186*P186+N187*P187+N188*P188+N189*P189)/SUM(N186:N189)) -> 0 | R191: =SUM(R186:R189) -> 0
C193: Fuentes. | D193: Consejos para el uso de mascarillas por parte de los niños de la comunidad en el contexto de la pandemia de COVID-19 | L193: https://www.who.int/publications/i/item/WHO-2019-nCoV-IPC_Masks-Children-2020.1
C196: Calculadora 5. Cómo calcular la cantidad de sensores de temperatura automáticos, oxímetros y personal encargado de los controles médicos
D198: Reglas generales para determinar la cantidad | L198: <Dejar la celda en blanco si no hay un requisito mínimo> | P198: <Dejar la celda en blanco si no hay un requisito máximo>
D199: Sensores de temperatura automáticos | G199: 1 | H199: pieza(s) por cada | I199: 150 | J199: alumnos, | K199: con un mín. de | L199: 2 | M199: por escuela y un máx. de | P199: 10 | Q199: por escuela
D200: Oxímetros | G200: 1 | H200: pieza(s) por cada | I200: 150 | J200: alumnos, | K200: con un mín. de | L200: 2 | M200: por escuela y un máx. de | P200: 10 | Q200: por escuela
D201: Personal encargado de los controles médicos | G201: 1 | H201: controlador(es) por cada | I201: 150 | J201: alumnos, | K201: con un mín. de | M201: por escuela y un máx. de | Q201: por escuela
D203: Cantidad de alumnos en una escuela | I203: ='Basic information about schools'!G55 -> 200 | J203: <La configuración predeterminada es la cantidad promedio de alumnos en una escuela.>
D204: Cantidad de sensores de temperatura automáticos necesarios en una escuela | I204: =IF(ISERROR(IF(AND(P199 <>"", I$203/I199*G199>P199), P199, IF(AND(L199 <>"", I$203/I199*G199 <L199), L199, ROUNDUP(I$203/I199*G199,0)))) = TRUE, "", IF(AND(P199 <>"", I$203/I199*G199>P199), P199, IF(AND(L199 <>"", I$203/I199*G199 <L199), L199, ROUNDUP(I$203/I199*G199,0)))) -> 2
D205: Cantidad de oxímetros necesarios en una escuela | I205: =IF(ISERROR(IF(AND(P200 <>"", I$203/I200*G200>P200), P200, IF(AND(L200 <>"", I$203/I200*G200 <L200), L200, ROUNDUP(I$203/I200*G200,0)))) = TRUE, "", IF(AND(P200 <>"", I$203/I200*G200>P200), P200, IF(AND(L200 <>"", I$203/I200*G200 <L200), L200, ROUNDUP(I$203/I200*G200,0)))) -> 2
D206: Cantidad de personal encargado de los controles médicos necesario en una escuela | I206: 2
C208: Notas. La configuración predeterminada de las reglas generales para determinar la cantidad de sensores de temperatura automáticos y oxímetros se basa en la estrategia de reapertura de escuelas publicada por el Ministerio de Educación de Chile (https://sigamosaprendiendo.mineduc.cl/documentos/).
C211: Calculadora 6: Cómo estimar el costo de desarrollar una plataforma de aprendizaje remoto
E213: ¿Quiénes participan en esta etapa? | H213: Funciones y responsabilidades | J213: Cantidad de personas en la categoría | L213: Porcentaje de tiempo dedicado a la tarea | N213: Nivel salarial promedio | P213: Costo total
C214: Desarrollo de contenido | P214: =J214*L214*N214 -> 0
P215: =J215*L215*N215 -> 0
P216: 0
C217: Desarrollo de la plataforma | P217: 0
P218: 0
P219: 0
C220: Mantenimiento de la plataforma | P220: 0
P221: 0
P222: 0
C224: Total | P224: =SUM(P214:P222) -> 0

Sheet Prices of additional resources
G6: <Ingresar el precio de cada recurso> | J6: <Si le interesa conocer el costo económico, complete las columnas J y K>
C7: Medidas verificadas | D7: Recursos adicionales | E7: Cantidad | F7: Unidad | G7: ="Price "&IF('Basic information about schools'!G99="","","(in "&'Basic information about schools'!G99&")"&"") -> Price (in Bea) | H7: ="Total additional cost" -> Total additional cost | J7: ="Can this resource be used beyond "&LOWER('Basic information about schools'!D43)&"? (Yes/No)" -> Can this resource be used beyond el primer semestre de 2021.? (Yes/No) | K7: Si la respuesta es sí, ¿cuál es la vida útil prevista para este recurso? (en meses) | L7: Costo económico
C8: Eje 1: medidas relacionadas con la seguridad de las operaciones
C9: Establecer medidas de limpieza y desinfección | D9: Desinfectante | E9: =Disinfectant_per_school_per_day_gap * (N_school * pct_school_reopen) * N_school_days -> 2025 | F9: litro(s) | G9: 1 | H9: =E9*G9 -> 2025 | L9: =IF(J9 = "Yes", H9/K9 * (N_school_days/20), H9) -> 2025 | N9: P101
D10: Contenedores vacíos para diluir los productos de limpieza y desinfección | E10: =N_container_per_cleaner * N_newly_hired_cleaner + (N_container_per_cleaner - N_container_per_cleaner_current) * N_cleaner_current * pct_teacher_staff_in_school -> 35 | F10: pieza(s) | G10: 100 | H10: =E10*G10 -> 3500 | J10: Sí | K10: 24 | L10: 3500
D11: pulverizadores con desinfectantes electrostáticos | E11: =N_sprayer_per_cleaner * N_newly_hired_cleaner + (N_sprayer_per_cleaner - N_sprayer_per_cleaner_current) * N_cleaner_current * pct_teacher_staff_in_school -> 35 | F11: pieza(s) | G11: 100 | H11: 3500 | J11: Sí | K11: 36 | L11: 3500
D12: Trapeadores, baldes y cepillos | E12: =(N_mop_per_room - N_mop_per_room_current) * N_school * pct_school_reopen * N_room_per_school -> 187.5 | F12: conjunto(s) | G12: 100 | H12: 18750 | J12: Sí | K12: 12 | L12: 18750
D13: Barras de jabón | E13: =N_soap_bar_per_room * N_room_per_school * N_school * pct_school_reopen -> 375 | F13: pieza(s) | G13: 100 | H13: 37500 | L13: 37500
D14: Agua | E14: =Water_multiplier * N_school * pct_school_reopen -> 100 | F14: vez/veces x escuela(s) | G14: 1 | H14: 100 | L14: 100
D15: Guantes de goma para el personal de limpieza | E15: =N_glove_per_cleaner * N_newly_hired_cleaner + (N_glove_per_cleaner - N_glove_per_cleaner_current) * N_cleaner_current * pct_teacher_staff_in_school -> 70 | F15: par(es) | G15: 100 | H15: 7000 | J15: Sí | K15: 12 | L15: 7000
D16: Batas desechables para el personal de limpieza | E16: =N_disposable_gown_per_cleaner_per_day * N_cleaner * pct_teacher_staff_in_school * N_school_days -> 4950 | F16: conjunto(s) | G16: 100 | H16: 495000 | L16: 495000
D17: Batas y gorras reutilizables para el personal de limpieza | E17: =N_reusable_gown_per_cleaner * N_newly_hired_cleaner + (N_reusable_gown_per_cleaner - N_reusable_gown_per_cleaner_current) * N_cleaner_current * pct_teacher_staff_in_school -> 70 | F17: conjunto(s) | G17: 100 | H17: 7000 | J17: Sí | K17: 12 | L17: 7000
D18: Personal de limpieza recién contratado | E18: =N_newly_hired_cleaner * (N_school_days / N_school_days_per_academic_year) -> 5 | F18: empleado(s) a tiempo completo | G18: 100 | H18: 500 | L18: 500
D19: Horas extra para el personal de limpieza | E19: =N_overtime_hour_per_cleaner_per_day * N_cleaner * pct_teacher_staff_in_school * N_school_days -> 0 | F19: hora(s) | G19: 1 | H19: 0 | L19: 0
C20: Proporcionar equipos de protección personal | D20: Mascarillas reutilizables | E20: =N_reusable_mask -> 1120 | F20: pieza(s) | G20: 1 | H20: 1120 | J20: Sí | K20: 12 | L20: 1120 | N20: P102
D21: Mascarillas desechables | E21: =N_disposable_mask -> 50400 | F21: pieza(s) | G21: 1 | H21: 50400 | L21: 50400
D22: Máscaras faciales | E22: =N_shield_per_teacher_staff * N_teacher_and_staff * pct_teacher_staff_in_school -> 1120 | F22: pieza(s) | G22: 1 | H22: 1120 | J22: Sí | K22: 12 | L22: 1120
C23: Proporcionar materiales para higienizar las manos | D23: Antisépticos de base alcohólica (al menos 70 por ciento alcohol) | E23: =Antiseptic_per_person_per_day_gap * (N_student * pct_student_in_school + N_teacher_and_staff * pct_teacher_staff_in_school) * N_school_days/1000 -> 6172.2 | F23: litro(s) | G23: 1 | H23: 6172.2 | L23: 6172.2 | N23: P103
D24: Dispensadores antisépticos | E24: =(N_antiseptic_dispenser_per_room - N_antiseptic_dispenser_per_room_current) * N_room_per_school * N_school * pct_school_reopen -> 375 | F24: pieza(s) | G24: 1 | H24: 375 | J24: No | L24: 375
D25: Jabón líquido | E25: =Liquid_soap_per_person_per_day_gap * (N_student * pct_student_in_school + N_teacher_and_staff * pct_teacher_staff_in_school) * N_school_days/1000 -> 4114.8 | F25: litro(s) | G25: 1 | H25: 4114.8 | L25: 4114.8
D26: Papel secante | E26: =(N_paper_towel_per_person_per_month - N_paper_towel_per_person_per_month_current)/20 * (N_student * pct_student_in_school + N_teacher_and_staff * pct_teacher_staff_in_school) * N_school_days -> 34290 | F26: rollo(s) | G26: 1 | H26: 34290 | L26: 34290
D27: Toallitas descartables registradas en la EPA | E27: =(N_package_wipes_per_person_per_month - N_package_wipes_per_person_per_month_current)/20 * (N_student * pct_student_in_school + N_teacher_and_staff * pct_teacher_staff_in_school) * N_school_days -> 34290 | F27: paquete(s) | G27: 1 | H27: 34290 | L27: 34290
D28: Botes de basura sin contacto/a pedal | E28: =(N_trash_can_per_room - N_trash_can_per_room_current) * N_room_per_school * N_school * pct_school_reopen -> 375 | F28: pieza(s) | G28: 1 | H28: 375 | J28: Sí | K28: 36 | L28: 375
D29: Secador de manos | E29: =(N_hand_dryer_per_restroom - N_hand_dryer_per_restroom_current) * ROUNDUP(N_class/N_school/Classroom_restroom_ratio,0) * N_school * pct_school_reopen -> 0 | F29: pieza(s) | G29: 1 | H29: 0 | J29: Sí | K29: 60 | L29: 0
C30: Realizar controles médicos in situ | D30: Sensores de temperatura automáticos | E30: =N_temp_sensor_per_school * N_school * pct_school_reopen -> 50 | F30: pieza(s) | G30: 1 | H30: 50 | J30: Sí | K30: 36 | L30: 50 | N30: P104
D31: Oxímetro | E31: =N_oximeter_per_school * N_school * pct_school_reopen -> 50 | F31: pieza(s) | G31: 1 | H31: 50 | J31: Sí | K31: 36 | L31: 50
D32: Horas extra para el personal adecuadamente capacitado para realizar controles médicos | E32: =N_overtime_hour_per_screener_per_day * N_screening_staff_per_school * N_school * pct_school_reopen * N_school_days -> 4500 | F32: hora(s) | G32: 1 | H32: 4500 | L32: 4500
D33: Máscaras protectoras y guantes desechables para el personal encargado de los controles médicos | E33: =N_PPE_per_screener_per_day * N_screening_staff_per_school * N_school * pct_school_reopen * N_school_days -> 4500 | F33: conjunto(s) | G33: 1 | H33: 4500 | L33: 4500
D34: Enfermeras a tiempo completo recién contratadas | E34: =N_newly_hired_nurse* (N_school_days/N_school_days_per_academic_year) -> 5 | F34: empleado(s) a tiempo completo | G34: 1 | H34: 5 | L34: 5
D35: Horas extra para enfermeras a tiempo completo | E35: =N_overtime_hour_per_nurse_per_day * N_nurse * pct_teacher_staff_in_school * N_school_days -> 4950 | F35: hora(s) | G35: 1 | H35: 4950 | L35: 4950
D36: Sala de emergencia/consultorio médico/salas de aislamiento | E36: =N_isolation_room_per_school * N_school * pct_school_reopen -> 50 | F36: habitaciones | G36: 1 | H36: 50 | L36: 50
C37: Monitorear síntomas a través de encuestas realizadas a los padres | D37: Horas extra para los técnicos encargados de i) poner en marcha el monitoreo de salud en línea y la plataforma para presentar informes, y ii) preparar y difundir los informes diarios. | E37: =N_overtime_hour_per_technician_per_day_monitoring * N_technician * pct_teacher_staff_in_school * N_school_days -> 0 | F37: hora(s) | G37: 1 | H37: 0 | L37: 0 | N37: P105
C38: Limitar el intercambio de objetos | D38: Materiales de enseñanza o aprendizaje que deben adquirirse para minimizar el intercambio. | E38: =N_set_TLM -> 100 | F38: conjunto(s) | G38: 1 | H38: 100 | J38: Sí | K38: 12 | L38: 100 | N38: P106
C39: Asegurar los espacios, materiales y estrategias para mantener la distancia física y social | D39: Costo de alquilar los espacios comunitarios sin utilizar. | E39: =N_space_per_school_per_day * N_school * pct_school_reopen * N_school_days -> 0 | F39: metro(s) cuadrado(s) x día(s) | G39: 1 | H39: 0 | L39: 0 | N39: P107
C40: Establecer barreras y guías físicas | D40: Barreras físicas en las aulas | E40: =N_physical_screen_per_student * N_student_per_school * (N_school * pct_school_reopen * pct_school_classroom_barrier) -> 4000 | F40: pieza(s) | G40: 1 | H40: 4000 | J40: Sí | K40: 24 | L40: 4000 | N40: P108
D41: Barreras físicas entre los lavabos del baño | E41: =(N_sink_per_restroom - 1) * ROUNDUP(N_class/N_school/Classroom_restroom_ratio, 0) * (N_school * pct_school_reopen * pct_school_restroom_barrier) -> 240 | F41: pieza(s) | G41: 1 | H41: 240 | J41: Sí | K41: 24 | L41: 240
D42: Cintas para crear señales en los pisos y aceras | E42: =N_tape_per_school * N_school * pct_school_reopen -> 250 | F42: rollo(s) | G42: 1 | H42: 250 | J42: No | L42: 250
D43: Carteles o señales en las paredes | E43: =N_poster_per_school * N_school * pct_school_reopen -> 250 | F43: cartel(es) | G43: 11 | H43: 2750 | J43: Sí | K43: 24 | L43: 2750
C44: Instruir a alumnos, docentes, personal y padres respecto a la seguridad de las operaciones escolares | D44: Horas extra para los docentes y el personal que participen en la capacitación relacionada con la seguridad de las operaciones. | E44: =N_overtime_hour_per_teacher_staff_safety_training * N_teacher_and_staff * pct_teacher_staff_in_school -> 1120 | F44: hora(s) | G44: 1 | H44: 1120 | L44: 1120 | N44: P109
C45: Mantener un nivel de colaboración y coordinación apropiados con las autoridades de salud pública locales. | D45: Batas o ropa quirúrgica para las enfermeras escolares | E45: =N_gown_per_nurse * N_newly_hired_nurse + (N_gown_per_nurse - N_gown_per_nurse_current) * N_nurse_current * pct_teacher_staff_in_school -> 70 | F45: pieza(s) | G45: 1 | H45: 70 | J45: Sí | K45: 24 | L45: 70 | N45: P110
D46: EPP necesario para atender casos sospechosos | E46: =N_PPE_per_case * N_suspected_cases_per_school_per_day * N_school * pct_school_reopen * N_school_days -> 4500 | F46: conjunto(s) | G46: 1 | H46: 4500 | L46: 4500
C47: Adaptar el transporte | D47: Máquinas de humo para autobuses | E47: =N_fog_machine_per_bus * N_newly_hired_driver + (N_fog_machine_per_bus - N_fog_machine_per_bus_current) * N_driver_current * pct_teacher_staff_in_school -> 25 | F47: pieza(s) | G47: 1 | H47: 25 | J47: Sí | K47: 36 | L47: 25 | N47: P111
D48: Desinfectante para autobuses | E48: =Disinfectant_bus_per_trip_gap * (N_student * pct_student_in_school * pct_student_bus)/(N_student_full_capacity_school_bus * pct_bus_capacity) * 2 * N_school_days/1000 -> 4.8171591 | F48: litro(s) | G48: 1 | H48: 4.8171591 | L48: 4.8171591
D49: Sensores de temperatura automáticos para controlar la temperatura de los alumnos antes de subir a bordo. | E49: =N_temperature_sensor_per_bus * N_driver * pct_teacher_staff_in_school -> 50 | F49: pieza(s) | G49: 1 | H49: 50 | J49: Sí | K49: 36 | L49: 50
D50: Antisépticos de base alcohólica (al menos 70 por ciento alcohol) | E50: =Antiseptic_per_person_per_day_bus_gap * (N_student * pct_student_in_school * pct_student_bus) * N_school_days/1000 -> 1053 | F50: litro(s) | G50: 1 | H50: 1053 | L50: 1053
D51: Dispensadores antisépticos | E51: =N_dispenser_per_bus * N_newly_hired_driver + (N_dispenser_per_bus - N_dispenser_per_bus_current) * N_driver_current * pct_teacher_staff_in_school -> 50 | F51: pieza(s) | G51: 1 | H51: 50 | J51: No | L51: 50
D52: Combustible adicional | E52: =N_school * pct_school_reopen * (pct_student_bus / pct_student_bus_pre_covid) * (1 / pct_bus_capacity - 1) -> 15 | F52: vez/veces x escuela(s) | G52: 1 | H52: 15 | L52: 15
C53: Adaptar la ventilación | D53: Actualizar sistemas de climatización | E53: =N_school * pct_school_reopen * pct_school_HVAC_updating -> 2.5 | F53: escuela(s) | G53: 1 | H53: 2.5 | J53: Sí | K53: 36 | L53: 2.5 | N53: P112
C54: Reorganizar el programa de almuerzo | D54: Batas, delantales y gorros para el personal de cocina | E54: =N_gown_food_worker * N_newly_hired_food_staff + (N_gown_food_worker - N_gown_food_worker_current) * N_food_staff_current * pct_teacher_staff_in_school -> 0 | F54: conjunto(s) | G54: 1 | H54: =E54*G54 -> 0 | J54: Sí | K54: 24 | L54: 0 | N54: P113
D55: Utensilios desechables | E55: =(N_disposable_utensil_per_student - N_disposable_utensil_per_student_current) * N_student * pct_student_in_school * pct_student_lunch * N_school_days -> 0 | F55: conjunto(s) | G55: 1 | H55: 0 | L55: 0
D56: Platos desechables | E56: =(N_disposable_dish_per_student - N_disposable_dish_per_student_current) * N_student * pct_student_in_school * pct_student_lunch * N_school_days -> 0 | F56: conjunto(s) | G56: 1 | H56: 0 | L56: 0
C57: Eje 2: medidas para sostener el aprendizaje
C58: Posibilitar el desarrollo profesional de los docentes. | D58: Horas extra para los docentes que participen en las sesiones de capacitación sobre pedagogía | E58: =IF(teacher_pd = "Reopened schools", N_PD_session_per_teacher * N_hour_per_training_session * pct_teacher_PD * pct_teacher_staff_in_school * N_teacher_and_staff, N_PD_session_per_teacher * N_hour_per_training_session * pct_teacher_PD * N_teacher_and_staff) -> 4480 | F58: hora(s) | G58: 100 | H58: 448000 | L58: =IF(J58 = "Yes", H58/K58 * (N_school_days/20), H58) -> 448000 | N58: P201
D59: Compensación para los capacitadores externos que proporcionen sesiones de capacitación | E59: =N_external_trainer * N_session_per_trainer * N_hour_per_PD_session -> 1000 | F59: hora(s) | G59: 100 | H59: 100000 | J59: Sí | K59: 12 | L59: 100000
D60: Materiales de capacitación | E60: =IF(teacher_pd = "Reopened schools", N_PD_materials_per_teacher * N_teacher * pct_teacher_PD * pct_teacher_staff_in_school, N_PD_materials_per_teacher * N_teacher * pct_teacher_PD) -> 1050 | F60: conjunto(s) | G60: 100 | H60: 105000 | J60: Sí | K60: 12 | L60: 105000
C61: Mantener los enfoques flexibles o parciales de aprendizaje remoto | D61: Plataformas de aprendizaje remotas | E61: 1 | F61: conjunto | G61: 1 | H61: 1 | J61: Sí | K61: 12 | L61: 1 | N61: P202
D62: Compensación para acceder a Internet | E62: =(pct_teacher_internet * N_teacher + pct_student_internet * N_student) * ROUNDUP((N_school_days/20), 0) -> 27100 | F62: persona(s) x meses | H62: 0 | L62: 0
D63: Compensación para planes de datos de los teléfonos celulares | E63: =(pct_teacher_data_plan * N_teacher + pct_student_data_plan * N_student) * ROUNDUP((N_school_days/20), 0) -> 27100 | F63: persona(s) x meses | H63: 0 | L63: 0
D64: Computadoras de escritorio | E64: =N_desktop -> 100 | F64: pieza(s) | G64: 800 | H64: 80000 | J64: Sí | K64: 36 | L64: 80000
D65: Computadoras portátiles | E65: =N_laptop -> 200 | F65: pieza(s) | G65: 1000 | H65: 200000 | J65: Sí | K65: 36 | L65: 200000
D66: Tabletas | E66: =N_tablet -> 200 | F66: pieza(s) | G66: 1000 | H66: 200000 | J66: Sí | K66: 36 | L66: 200000
D67: Teléfonos | E67: =N_phone -> 200 | F67: pieza(s) | G67: 1000 | H67: 200000 | J67: Sí | K67: 36 | L67: 200000
D68: Técnicos recién contratados | E68: =N_newly_hired_technician * (N_school_days/N_school_days_per_academic_year) -> 5 | F68: empleado(s) a tiempo completo | G68: 1 | H68: 5 | L68: 5
D69: Horas extra para técnicos u otro personal que proporcione asistencia técnica | E69: =N_overtime_hour_per_technician_per_day_tech_support * N_technician * N_school_days -> 9900 | F69: hora(s) | G69: 1 | H69: 9900 | L69: 9900
C70: Realizar evaluaciones de diagnóstico | D70: Importe de la licencia para las evaluaciones | E70: =N_license_assessment -> 1 | F70: licencia(s) | G70: 1 | H70: 1 | J70: Sí | K70: 12 | L70: 1 | N70: P203
D71: Impresión de las evaluaciones (si se entregan en papel) | E71: =IF(diagnosis_assessment = "Reopened schools", N_page_assessment * N_student * pct_student_in_school * pct_student_test, N_page_assessment * N_student * pct_student_test) -> 19000 | F71: página(s) | G71: 1 | H71: 19000 | L71: 19000
D72: Compensación para especialistas en evaluación externos para elaborar las evaluaciones y proporcionar capacitación | E72: =N_assessment_specialist * N_hour_per_assessment_specialist -> 100 | F72: hora(s) | H72: 0 | J72: Sí | K72: 12 | L72: 0
C73: Aumentar la intensidad y la diferenciación (aprendizaje personalizado) | D73: Importe de la licencia para los programas de recuperación y aceleración | E73: =N_license_personalized_learning_program -> 1 | F73: licencia(s) | G73: 1 | H73: 1 | J73: Sí | K73: 12 | L73: 1 | N73: P204
D74: Pago para los auxiliares pedagógicos que proporcionan aprendizaje personalizado en forma de clases de refuerzo | E74: =N_hour_teaching_aid -> 1333.333333 | F74: hora(s) | G74: 1 | H74: =E74*G74 -> 1333.333333 | L74: 1333.333333
C75: Extender los horarios | D75: Horas extra para los docentes para proporcionar instrucciones | E75: =IF(extend_schedules = "Reopened schools", N_hour_per_extended_day * N_extended_day * N_teacher * pct_teacher_staff_in_school, N_hour_per_extended_day * N_extended_day * N_teacher ) -> 252000 | F75: hora(s) | G75: 1 | H75: 252000 | L75: 252000 | N75: P205
C76: Contratar nuevos docentes, reorganizar los turnos de trabajo o extender el horario de trabajo de los docentes | D76: Docentes recién contratados para asegurar grupos más pequeños y sustituir a colegas enfermos | E76: =N_newly_hired_teacher * (N_school_days / N_school_days_per_academic_year) -> 25 | F76: empleado(s) a tiempo completo | G76: 1 | H76: 25 | L76: 25 | N76: P206
D77: Horas extra para que los docentes actuales sustituyan a sus colegas enfermos | E77: =N_hour_substitute * pct_hour_substitute_by_current_teacher -> 800 | F77: hora(s) | G77: 10 | H77: 8000 | L77: 8000
C78: Eje 3: medidas para apoyar el bienestar y la recuperación emocional | H78: 0
C79: Proporcionar apoyo y asesoramiento psicosocial exclusivo. | D79: Asesores recién contratados | E79: =N_newly_hired_counselor * (N_school_days / N_school_days_per_academic_year) -> 10 | F79: empleado(s) a tiempo completo | G79: 1 | H79: 10 | L79: =IF(J79 = "Yes", H79/K79 * (N_school_days/20), H79) -> 10 | N79: P301
D80: Horas extra para asesores | E80: =IF(counselling = "Reopened schools", N_overtime_hour_per_counselor_per_day * N_counselor * pct_teacher_staff_in_school * N_school_days, N_overtime_hour_per_counselor_per_day * N_counselor * N_school_days) -> 0 | F80: hora(s) | G80: 20 | H80: 0 | L80: 0
D81: Trabajadores sociales recién contratados | E81: =N_newly_hired_social_worker * (N_school_days / N_school_days_per_academic_year) -> 10 | F81: empleado(s) a tiempo completo | G81: 1 | H81: 10 | L81: 10
D82: Horas extra para trabajadores sociales | E82: =IF(counselling = "Reopened schools", N_overtime_hour_per_social_worker_per_day * N_social_worker * pct_teacher_staff_in_school * N_school_days, N_overtime_hour_per_social_worker_per_day * N_social_worker * N_school_days) -> 0 | F82: hora(s) | G82: 20 | H82: 0 | L82: 0
D83: Psicólogos recién contratados | E83: =N_newly_hired_psychologist * (N_school_days / N_school_days_per_academic_year) -> 10 | F83: empleado(s) a tiempo completo | G83: 1 | H83: 10 | L83: 10
D84: Horas extra para psicólogos | E84: =IF(counselling = "Reopened schools", N_overtime_hour_per_psychologist_per_day * N_psychologist * pct_teacher_staff_in_school * N_school_days, N_overtime_hour_per_psychologist_per_day * N_psychologist * N_school_days) -> 0 | F84: hora(s) | G84: 20 | H84: 0 | L84: 0
C85: Adoptar programas de aprendizaje social y emocional (ASE) | D85: Horas extra para los docentes que participen en las sesiones de capacitación ASE | E85: =IF(SEL_programs = "Reopened schools", N_SEL_training_per_teacher * N_hour_SEL_training_per_session * N_teacher * pct_teacher_staff_in_school * pct_teacher_SEL_training, N_SEL_training_per_teacher * N_hour_SEL_training_per_session * N_teacher * pct_teacher_SEL_training) -> 210 | F85: hora(s) | G85: 20 | H85: 4200 | L85: 4200 | N85: P302
D86: Horas extra para los docentes que promueven el ASE | E86: =IF(SEL_programs = "Reopened schools", N_overtime_hour_per_teacher_per_day_SEL * N_teacher * pct_teacher_staff_in_school * pct_teacher_overtime_SEL * N_school_days, N_overtime_hour_per_teacher_per_day_SEL * N_teacher * pct_teacher_overtime_SEL * N_school_days) -> 18900 | F86: hora(s) | G86: 20 | H86: 378000 | L86: 378000
D87: Importe de la licencia para los programas ASE adoptados | E87: =N_license_SEL -> 4 | F87: licencia(s) | G87: 1 | H87: 4 | J87: Sí | K87: 12 | L87: 4
C88: Eje 4: medidas para llegar a los más marginados
C89: Proporcionar apoyo adecuado para las necesidades de recuperación, especialmente entre alumnos desfavorecidos y vulnerables. | D89: Equipo de protección especial o adaptado | E89: =N_adapted_PPE_per_school * N_school * pct_school_reopen -> 250 | F89: conjunto(s) | G89: 1 | H89: 250 | J89: No | L89: =IF(J89 = "Yes", H89/K89 * (N_school_days/20), H89) -> 250 | N89: P401
D90: <Especifique los recursos adicionales en base al apoyo proporcionado> | H90: 0 | L90: 0
C91: Llevar a cabo campañas de rematriculación y apoyo envolvente para evitar la deserción. | D91: Tiempo que le lleva al personal diseñar e implementar las campañas de matriculación | E91: =IF(reenrollment_campaign = "Reopened schools", N_hour_per_mobilizer * N_mobilizer * pct_teacher_staff_in_school, N_hour_per_mobilizer * N_mobilizer) -> 800 | F91: hora(s) | G91: 10 | H91: =E91*G91 -> 8000 | J91: Sí | K91: 12 | L91: 8000 | N91: P402
D92: Gastos de transporte para las campañas | E92: =N_enrollment_campaign_trips -> 120 | F92: viaje(s) | G92: 1 | H92: 120 | L92: 120
D93: Programas de alimentación | E93: =N_feeding_program_beneficiery -> 2000 | F93: beneficiario(s) | G93: 100 | H93: 200000 | L93: 200000
D94: Provisión de uniformes escolares | E94: =N_school_uniforms -> 2000 | F94: cantidad de uniformes | G94: 100 | H94: 200000 | J94: Sí | K94: 12 | L94: 200000
D95: Eliminación o exención de la matrícula escolar | E95: =N_school_fee_waiver -> 2000 | F95: exenciones de la matrícula escolar | G95: 100 | H95: 200000 | L95: 200000
D96: <Especifique los recursos adicionales en base al apoyo proporcionado> | H96: 0 | L96: 0
C97: Monitorear y planificar el ausentismo | D97: Horas extra para que el personal monitoree y planifique el ausentismo | E97: =N_staff_member_absenteeism_monitoring * N_overtime_hour_per_person_per_day_monitor_absenteeism * N_school * pct_school_reopen -> 50 | F97: hora(s) | G97: 1 | H97: 50 | L97: 50 | N97: P403
G98: 1
C100: Conteo de palabras
C101: =SUM(IF(LEN(TRIM(B1:D98))=0,0,LEN(TRIM(B1:D98))-LEN(SUBSTITUTE(B1:D98," ",""))+1)) + SUM(IF(LEN(TRIM(F1:F98))=0,0,LEN(TRIM(F1:F98))-LEN(SUBSTITUTE(F1:F98," ",""))+1)) + SUM(IF(LEN(TRIM(J1:K98))=0,0,LEN(TRIM(J1:K98))-LEN(SUBSTITUTE(J1:K98," ",""))+1)) -> 1050

Sheet Funding
C5: <Indique el financiamiento disponible de fuentes domésticas y externas y el porcentaje de financiamiento sujeto a reasignación>
C7: Fuente de financiamiento | D7: Monto disponible | E7: Porcentaje sujeto a reasignación | F7: Financiamiento total
C8: Ahorro derivado de cancelar las excursiones, eventos y actividades extracurriculares | D8: 10000 | E8: 1 | F8: =D8*E8 -> 10000
C9: Ahorro del anterior cierre escolar | D9: 10000 | E9: 1 | F9: 10000
C10: Financiamiento externo | D10: 101000 | E10: 1 | F10: 101000
C11: Paquete de ayuda para la COVID-19 | D11: 800000 | E11: 1 | F11: 800000
C12: Donaciones | D12: 10000 | E12: 1 | F12: 10000
F13: 0
F14: =D14*E14 -> 0
F15: 0
F16: 0
F17: 0
F18: 0
F19: 0

Sheet Report
C7: ="How much does it cost to reopen schools safely"&IF('Basic information about schools'!F9 <>"", " in "&'Basic information about schools'!F9&"", "")&"?" -> How much does it cost to reopen schools safely in Storyland?
E9: Contexto | I9: ="Costo, financiamiento y brecha financiera de reabrir las escuelas de forma segura durante el segundo semestre de "&LOWER('Basic information about schools'!D43)&"" -> Costo, financiamiento y brecha financiera de reabrir las escuelas de forma segura durante el segundo semestre de el primer semestre de 2021.
E10: =CHOOSE(Output!C3, Output!C4, Output!C5, Output!C6, Output!C7, Output!C8) -> Región Neverland | L10: ="(Expressed in "&'Basic information about schools'!G99&" in "&'Basic information about schools'!G101&" values)" -> (Expressed in Bea in 2021 values)
E13: Niveles educativos
D14: =_xlfn.ANCHORARRAY(Output!O3) -> Educación preescolar (Edad 3-5) | E14: =_xlfn.ANCHORARRAY(Output!O3) -> Educación preescolar (Edad 3-5)
D15: Educación primaria (Jardín a 3.º) | E15: Educación primaria (Jardín a 3.º)
E21: Período de tiempo
E22: ='Basic information about schools'!D43 -> El primer semestre de 2021.
E23: ="("&N_school_days&" días de escuela totales)" -> (90 días de escuela totales) | I23: ="El costo financiero de los recursos adicionales necesarios para reabrir las escuelas de forma segura por eje" -> El costo financiero de los recursos adicionales necesarios para reabrir las escuelas de forma segura por eje
L24: ="(Expressed in "&'Basic information about schools'!G99&" in "&'Basic information about schools'!G101&" values)" -> (Expressed in Bea in 2021 values)
E26: Población objetivo
E27: =N_school -> 50 | F27: escuelas
E28: =N_student -> 10000 | F28: alumnos
E31: Estado de la reapertura de escuelas
E32: =""&ROUND(pct_school_reopen, 2) *100&"%" -> 50% | F32: de todas las escuelas imparten clases presenciales
E35: =""&ROUND(pct_student_in_school, 2) *100&"%" -> 65% | F35: por ciento de los alumnos asiste a clases presenciales
I37: ="El costo económico de los recursos adicionales necesarios para reabrir las escuelas de forma segura por eje" -> El costo económico de los recursos adicionales necesarios para reabrir las escuelas de forma segura por eje
L38: ="(Expressed in "&'Basic information about schools'!G99&" in "&'Basic information about schools'!G101&" values)" -> (Expressed in Bea in 2021 values)
E39: Notas
E40: 1) La base de referencia es el presupuesto para la misma población de alumnos en la etapa pre COVID-19. 2) El costo financiero abarca los recursos que ya están pagos. El costo económico toma en cuenta el hecho de que algunos recursos pueden ser utilizados posteriormente al período de interés.
C55: 1. Explicación más detallada del costo financiero y el costo económico Algunos recursos se adquieren durante el período de tiempo de interés, pero puede ser usados después del mismo, como las computadoras portátiles. El costo financiero sería el costo total de las computadoras portátiles adquiridas sin amortización alguna. Si la vida útil prevista de estas computadoras portátiles es de tres años, el costo económico de estas para el período de un año es de aproximadamente un tercio del costo financiero. Para calcular el costo económico, complete las columnas J y K en la pestaña “Precios de los recursos adicionales”.
C57: 2. ¿Cómo imprimir el informe? Paso 1: Seleccionar el área a imprimir Seleccionar la celda B7 y luego, con el botón izquierdo apretado, arrastrar hasta la celda T52. Paso 2: Hacer clic en Archivo > Imprimir, o pulse CTRL + P. Paso 3: Haga clic en el botón Imprimir y ajuste la configuración. a) Cambie a “Orientación horizontal”. b) Seleccione “Ajustar pestaña en una sola página”. c) Ajuste los márgenes en base a sus necesidades.

Sheet Items to purchase
C6: <Se genera automáticamente una lista con los materiales y equipos que deben adquirirse. La cantidad representa las necesidades totales, NO los recursos adicionales necesarios>
C7: Artículos que se deben adquirir (materiales y equipos) | D7: Cantidad | E7: Unidad
C8: Desinfectante | D8: =Disinfectant_per_school_per_day * (N_school * pct_school_reopen) * N_school_days -> 2531.25 | E8: litro(s) | G8: p101
C9: Contenedores vacíos para diluir los productos de limpieza y desinfección | D9: =N_container_per_cleaner * N_newly_hired_cleaner + (N_container_per_cleaner - N_container_per_cleaner_current) * N_cleaner_current * pct_teacher_staff_in_school -> 35 | E9: pieza(s)
C10: pulverizadores con desinfectantes electrostáticos | D10: =N_sprayer_per_cleaner * N_newly_hired_cleaner + (N_sprayer_per_cleaner - N_sprayer_per_cleaner_current) * N_cleaner_current * pct_teacher_staff_in_school -> 35 | E10: pieza(s)
C11: Trapeadores, baldes y cepillos | D11: =(N_mop_per_room - N_mop_per_room_current) * N_school * N_room_per_school * pct_teacher_staff_in_school -> 187.5 | E11: conjunto(s)
C12: Barras de jabón | D12: =N_soap_bar_per_room * N_room_per_school * N_school * pct_school_reopen -> 375 | E12: pieza(s)
C13: Guantes de goma para el personal de limpieza | D13: =N_glove_per_cleaner * N_newly_hired_cleaner + (N_glove_per_cleaner - N_glove_per_cleaner_current) * N_cleaner_current * pct_teacher_staff_in_school -> 70 | E13: par(es)
C14: Batas desechables para el personal de limpieza | D14: =N_disposable_gown_per_cleaner_per_day * N_cleaner * pct_school_reopen * N_school_days -> 4950 | E14: conjunto(s)
C15: Batas y gorras reutilizables para el personal de limpieza | D15: =N_reusable_gown_per_cleaner * N_newly_hired_cleaner + (N_reusable_gown_per_cleaner - N_reusable_gown_per_cleaner_current) * N_cleaner_current * pct_teacher_staff_in_school -> 70 | E15: conjunto(s)
C16: Mascarillas reutilizables | D16: =N_reusable_mask -> 1120 | E16: pieza(s) | G16: P102
C17: Mascarillas desechables | D17: =N_disposable_mask -> 50400 | E17: pieza(s)
C18: Máscaras faciales | D18: =N_shield_per_teacher_staff * N_teacher_and_staff * pct_teacher_staff_in_school -> 1120 | E18: pieza(s)
C19: Antisépticos de base alcohólica (al menos 70 por ciento alcohol) | D19: =Antiseptic_per_person_per_day * (N_student * pct_student_in_school + N_teacher_and_staff * pct_teacher_staff_in_school) * N_school_days/1000 -> 10287 | E19: litro(s) | G19: P103
C20: Dispensadores antisépticos | D20: =(N_antiseptic_dispenser_per_room - N_antiseptic_dispenser_per_room_current) * N_room_per_school * N_school * pct_school_reopen -> 375 | E20: pieza(s)
C21: Jabón líquido | D21: =Liquid_soap_per_person_per_day * (N_student * pct_student_in_school + N_teacher_and_staff * pct_teacher_staff_in_school) * N_school_days/1000 -> 6858 | E21: litro(s)
C22: Papel secante | D22: =(N_paper_towel_per_person_per_month - N_paper_towel_per_person_per_month_current)/20 * (N_student * pct_student_in_school + N_teacher_and_staff * pct_teacher_staff_in_school) * N_school_days -> 34290 | E22: rollo(s)
C23: Toallitas descartables registradas en la EPA | D23: =(N_package_wipes_per_person_per_month - N_package_wipes_per_person_per_month_current)/20 * (N_student * pct_student_in_school + N_teacher_and_staff * pct_teacher_staff_in_school) * N_school_days -> 34290 | E23: paquete(s)
C24: Botes de basura sin contacto/a pedal | D24: =(N_trash_can_per_room - N_trash_can_per_room_current) * N_room_per_school * N_school * pct_school_reopen -> 375 | E24: pieza(s)
C25: Secador de manos | D25: =(N_hand_dryer_per_restroom - N_hand_dryer_per_restroom_current)*ROUNDUP(N_class/N_school/Classroom_restroom_ratio,0)*N_school * pct_school_reopen -> 0 | E25: pieza(s)
C26: Sensores de temperatura automáticos | D26: =N_temp_sensor_per_school * N_school * pct_school_reopen -> 50 | E26: pieza(s) | G26: P104
C27: Oxímetro | D27: =N_oximeter_per_school * N_school * pct_school_reopen -> 50 | E27: pieza(s)
C28: Máscaras protectoras y guantes desechables para el personal encargado de los controles médicos | D28: =N_PPE_per_screener_per_day * N_screening_staff_per_school * N_school * pct_school_reopen * N_school_days -> 4500 | E28: conjunto(s)
C29: Barreras físicas en las aulas | D29: =N_physical_screen_per_student * N_student_per_school * (N_school * pct_school_reopen * pct_school_classroom_barrier) -> 4000 | E29: pieza(s) | G29: P108
C30: Barreras físicas entre los lavabos del baño | D30: =(N_sink_per_restroom - 1) * ROUNDUP(N_class/N_school/Classroom_restroom_ratio, 0) * (N_school * pct_school_reopen * pct_school_restroom_barrier) -> 240 | E30: pieza(s)
C31: Cintas para crear señales en los pisos y aceras | D31: =N_tape_per_school * N_school * pct_school_reopen -> 250 | E31: rollo(s)
C32: Carteles o señales en las paredes | D32: =N_poster_per_school * N_school * pct_school_reopen -> 250 | E32: cartel(es)
C33: Batas o ropa quirúrgica para las enfermeras escolares | D33: =N_gown_per_nurse * N_newly_hired_nurse + (N_gown_per_nurse - N_gown_per_nurse_current) * N_nurse * pct_teacher_staff_in_school -> 75 | E33: pieza(s) | G33: P110
C34: EPP necesario para atender casos sospechosos | D34: =N_PPE_per_case * N_suspected_cases_per_school_per_day * N_school * pct_school_reopen * N_school_days -> 4500 | E34: conjunto(s)
C35: Máquinas de humo para autobuses | D35: =N_fog_machine_per_bus * N_newly_hired_driver + (N_fog_machine_per_bus - N_fog_machine_per_bus_current) * N_driver * pct_teacher_staff_in_school -> 25 | E35: pieza(s) | G35: P111
C36: Desinfectante para autobuses | D36: =Disinfectant_bus_per_trip * (N_student * pct_student_in_school * pct_student_bus)/(N_student_full_capacity_school_bus * pct_bus_capacity) * 2 * N_school_days/1000 -> 5.352399 | E36: litro(s)
C37: Sensores de temperatura automáticos para controlar la temperatura de los alumnos antes de subir a bordo. | D37: =N_temperature_sensor_per_bus * N_driver * pct_teacher_staff_in_school -> 50 | E37: pieza(s)
C38: Antisépticos de base alcohólica (al menos 70 por ciento alcohol) | D38: =Antiseptic_per_person_per_day_bus * (N_student * pct_student_in_school * pct_student_bus) * N_school_days/1000 -> 1053 | E38: litro(s)
C39: Dispensadores antisépticos | D39: =N_dispenser_per_bus * N_newly_hired_driver + (N_dispenser_per_bus - N_dispenser_per_bus_current) * N_driver_current * pct_teacher_staff_in_school -> 50 | E39: pieza(s)
C40: Batas, delantales y gorros para el personal de cocina | D40: =N_gown_food_worker * N_newly_hired_food_staff + (N_gown_food_worker - N_gown_food_worker_current) * N_food_staff_current * pct_teacher_staff_in_school -> 0 | E40: conjunto(s) | G40: P113
C41: Utensilios desechables | D41: =(N_disposable_utensil_per_student - N_disposable_utensil_per_student_current) * N_student * pct_student_in_school * pct_student_lunch * N_school_days -> 0 | E41: conjunto(s)
C42: Disposable dishes | D42: =(N_disposable_dish_per_student - N_disposable_dish_per_student_current) * N_student * pct_student_in_school * pct_student_lunch * N_school_days -> 0 | E42: set(s)
C43: Desktop computers | D43: =N_desktop -> 100 | E43: piece(s) | G43: P202
C44: Computadoras portátiles | D44: =N_laptop -> 200 | E44: pieza(s)
C45: Tabletas | D45: =N_tablet -> 200 | E45: pieza(s)
C46: Teléfonos | D46: =N_phone -> 200 | E46: pieza(s)
C47: Equipo de protección especial o adaptado | D47: =N_adapted_PPE_per_school * N_school * pct_school_reopen -> 250 | E47: conjunto(s) | G47: P401

Sheet List_Economy (hidden)
A1: Lista de economías del Banco Mundial (junio de 2020)
A3: (Las negritas indican un cambio en la clasificación)
A5: x | B5: x | C5: Economía | D5: Code | E5: X | F5: Region | G5: Income group | H5: Lending category | I5: Other | K5: Data prep
A6: x | B6: x | C6: x | D6: x | E6: x | F6: x | G6: x | H6: x | I6: x
A7: 1 | C7: Afganistán | D7: AFG | F7: South Asia | G7: Low income | H7: IDA | I7: HIPC | K7: =_xlfn._xlws.FILTER($C$7:$C$225, ISNUMBER(SEARCH('Basic information about schools'!F9, $C$7:$C$225)),"Please check the spelling") -> Storyland
A8: 2 | C8: Albania | D8: ALB | F8: Europe & Central Asia | G8: Upper middle income | H8: IBRD
A9: 3 | C9: Alemania | D9: DZA | F9: Middle East & North Africa | G9: Lower middle income | H9: IBRD
A10: 4 | C10: Andorra | D10: ASM | F10: East Asia & Pacific | G10: Upper middle income | H10: ..
A11: 5 | C11: Angola | D11: AND | F11: Europe & Central Asia | G11: High income | H11: ..
A12: 6 | C12: Antigua y Barbuda | D12: AGO | F12: Sub-Saharan Africa | G12: Lower middle income | H12: IBRD
A13: 7 | C13: Arabia Saudita | D13: ATG | F13: Latin America & Caribbean | G13: High income | H13: IBRD
A14: 8 | C14: Argelia | D14: ARG | F14: Latin America & Caribbean | G14: Upper middle income | H14: IBRD
A15: 9 | C15: Argentina | D15: ARM | F15: Europe & Central Asia | G15: Upper middle income | H15: IBRD
A16: 10 | C16: Armenia | D16: ABW | F16: Latin America & Caribbean | G16: High income | H16: ..
A17: 11 | C17: Aruba | D17: AUS | F17: East Asia & Pacific | G17: High income | H17: ..
A18: 12 | C18: Australia | D18: AUT | F18: Europe & Central Asia | G18: High income | H18: .. | I18: EMU
A19: 13 | C19: Austria | D19: AZE | F19: Europe & Central Asia | G19: Upper middle income | H19: IBRD
A20: 14 | C20: Azerbaiyán | D20: BHS | F20: Latin America & Caribbean | G20: High income | H20: ..
A21: 15 | C21: Bahamas | D21: BHR | F21: Middle East & North Africa | G21: High income | H21: ..
A22: 16 | C22: Bahréin | D22: BGD | F22: South Asia | G22: Lower middle income | H22: IDA
A23: 17 | C23: Bangladesh | D23: BRB | F23: Latin America & Caribbean | G23: High income | H23: ..
A24: 18 | C24: Barbados | D24: BLR | F24: Europe & Central Asia | G24: Upper middle income | H24: IBRD
A25: 19 | C25: Belarús | D25: BEL | F25: Europe & Central Asia | G25: High income | H25: .. | I25: EMU
A26: 20 | C26: Bélgica | D26: BLZ | F26: Latin America & Caribbean | G26: Upper middle income | H26: IBRD
A27: 21 | C27: Belice | D27: BEN | F27: Sub-Saharan Africa | G27: Lower middle income | H27: IDA | I27: HIPC
A28: 22 | C28: Benín | D28: BMU | F28: North America | G28: High income | H28: ..
A29: 23 | C29: Bermudas | D29: BTN | F29: South Asia | G29: Lower middle income | H29: IDA
A30: 24 | C30: Bolivia | D30: BOL | F30: Latin America & Caribbean | G30: Lower middle income | H30: IBRD | I30: HIPC
A31: 25 | C31: Bosnia y Herzegovina | D31: BIH | F31: Europe & Central Asia | G31: Upper middle income | H31: IBRD
A32: 26 | C32: Botsuana | D32: BWA | F32: Sub-Saharan Africa | G32: Upper middle income | H32: IBRD
A33: 27 | C33: Brasil | D33: BRA | F33: Latin America & Caribbean | G33: Upper middle income | H33: IBRD
A34: 28 | C34: Brunei Darussalam | D34: VGB | F34: Latin America & Caribbean | G34: High income | H34: ..
A35: 29 | C35: Bulgaria | D35: BRN | F35: East Asia & Pacific | G35: High income | H35: ..
A36: 30 | C36: Burkina Faso | D36: BGR | F36: Europe & Central Asia | G36: Upper middle income | H36: IBRD
A37: 31 | C37: Burundi | D37: BFA | F37: Sub-Saharan Africa | G37: Low income | H37: IDA | I37: HIPC
A38: 32 | C38: Bután | D38: BDI | F38: Sub-Saharan Africa | G38: Low income | H38: IDA | I38: HIPC
A39: 33 | C39: Cabo Verde | D39: CPV | F39: Sub-Saharan Africa | G39: Lower middle income | H39: Blend
A40: 34 | C40: Camboya | D40: KHM | F40: East Asia & Pacific | G40: Lower middle income | H40: IDA
A41: 35 | C41: Camerún | D41: CMR | F41: Sub-Saharan Africa | G41: Lower middle income | H41: Blend | I41: HIPC
A42: 36 | C42: Canadá | D42: CAN | F42: North America | G42: High income | H42: ..
A43: 37 | C43: Catar | D43: CYM | F43: Latin America & Caribbean | G43: High income | H43: ..
A44: 38 | C44: Chad | D44: CAF | F44: Sub-Saharan Africa | G44: Low income | H44: IDA | I44: HIPC
A45: 39 | C45: Chile | D45: TCD | F45: Sub-Saharan Africa | G45: Low income | H45: IDA | I45: HIPC
A46: 40 | C46: China | D46: CHI | F46: Europe & Central Asia | G46: High income | H46: ..
A47: 41 | C47: Chipre | D47: CHL | F47: Latin America & Caribbean | G47: High income | H47: IBRD
A48: 42 | C48: Colombia | D48: CHN | F48: East Asia & Pacific | G48: Upper middle income | H48: IBRD
A49: 43 | C49: Comoras | D49: COL | F49: Latin America & Caribbean | G49: Upper middle income | H49: IBRD
A50: 44 | C50: Congo, República del | D50: COM | F50: Sub-Saharan Africa | G50: Lower middle income | H50: IDA | I50: HIPC
A51: 45 | C51: Congo, República Democrática del | D51: COD | F51: Sub-Saharan Africa | G51: Low income | H51: IDA | I51: HIPC
A52: 46 | C52: Corea, República de | D52: COG | F52: Sub-Saharan Africa | G52: Lower middle income | H52: Blend | I52: HIPC
A53: 47 | C53: Corea, República Popular Democrática de | D53: CRI | F53: Latin America & Caribbean | G53: Upper middle income | H53: IBRD
A54: 48 | C54: Costa Rica | D54: CIV | F54: Sub-Saharan Africa | G54: Lower middle income | H54: IDA | I54: HIPC
A55: 49 | C55: Côte d’Ivoire | D55: HRV | F55: Europe & Central Asia | G55: High income | H55: IBRD
A56: 50 | C56: Croacia | D56: CUB | F56: Latin America & Caribbean | G56: Upper middle income | H56: ..
A57: 51 | C57: Cuba | D57: CUW | F57: Latin America & Caribbean | G57: High income | H57: ..
A58: 52 | C58: Curazao | D58: CYP | F58: Europe & Central Asia | G58: High income | H58: .. | I58: EMU
A59: 53 | C59: Dinamarca | D59: CZE | F59: Europe & Central Asia | G59: High income | H59: ..
A60: 54 | C60: Dominica | D60: DNK | F60: Europe & Central Asia | G60: High income | H60: ..
A61: 55 | C61: Ecuador | D61: DJI | F61: Middle East & North Africa | G61: Lower middle income | H61: IDA
A62: 56 | C62: Egipto, República Árabe de | D62: DMA | F62: Latin America & Caribbean | G62: Upper middle income | H62: Blend
A63: 57 | C63: El Salvador | D63: DOM | F63: Latin America & Caribbean | G63: Upper middle income | H63: IBRD
A64: 58 | C64: Emiratos Árabes Unidos | D64: ECU | F64: Latin America & Caribbean | G64: Upper middle income | H64: IBRD
A65: 59 | C65: Eritrea | D65: EGY | F65: Middle East & North Africa | G65: Lower middle income | H65: IBRD
A66: 60 | C66: Eslovenia | D66: SLV | F66: Latin America & Caribbean | G66: Lower middle income | H66: IBRD
A67: 61 | C67: España | D67: GNQ | F67: Sub-Saharan Africa | G67: Upper middle income | H67: IBRD
A68: 62 | C68: Estados Unidos | D68: ERI | F68: Sub-Saharan Africa | G68: Low income | H68: IDA | I68: HIPC
A69: 63 | C69: Estonia | D69: EST | F69: Europe & Central Asia | G69: High income | H69: .. | I69: EMU
A70: 64 | C70: Eswatini | D70: SWZ | F70: Sub-Saharan Africa | G70: Lower middle income | H70: IBRD
A71: 65 | C71: Etiopía | D71: ETH | F71: Sub-Saharan Africa | G71: Low income | H71: IDA | I71: HIPC
A72: 66 | C72: Federación Rusa | D72: FRO | F72: Europe & Central Asia | G72: High income | H72: ..
A73: 67 | C73: Filipinas | D73: FJI | F73: East Asia & Pacific | G73: Upper middle income | H73: Blend
A74: 68 | C74: Finlandia | D74: FIN | F74: Europe & Central Asia | G74: High income | H74: .. | I74: EMU
A75: 69 | C75: Fiyi | D75: FRA | F75: Europe & Central Asia | G75: High income | H75: .. | I75: EMU
A76: 70 | C76: Francia | D76: PYF | F76: East Asia & Pacific | G76: High income | H76: ..
A77: 71 | C77: Franja Occidental y Gaza | D77: GAB | F77: Sub-Saharan Africa | G77: Upper middle income | H77: IBRD
A78: 72 | C78: Gabón | D78: GMB | F78: Sub-Saharan Africa | G78: Low income | H78: IDA | I78: HIPC
A79: 73 | C79: Gambia | D79: GEO | F79: Europe & Central Asia | G79: Upper middle income | H79: IBRD
A80: 74 | C80: Georgia | D80: DEU | F80: Europe & Central Asia | G80: High income | H80: .. | I80: EMU
A81: 75 | C81: Ghana | D81: GHA | F81: Sub-Saharan Africa | G81: Lower middle income | H81: IDA | I81: HIPC
A82: 76 | C82: Gibraltar | D82: GIB | F82: Europe & Central Asia | G82: High income | H82: ..
A83: 77 | C83: Granada | D83: GRC | F83: Europe & Central Asia | G83: High income | H83: .. | I83: EMU
A84: 78 | C84: Grecia | D84: GRL | F84: Europe & Central Asia | G84: High income | H84: ..
A85: 79 | C85: Groenlandia | D85: GRD | F85: Latin America & Caribbean | G85: Upper middle income | H85: Blend
A86: 80 | C86: Guam | D86: GUM | F86: East Asia & Pacific | G86: High income | H86: ..
A87: 81 | C87: Guatemala | D87: GTM | F87: Latin America & Caribbean | G87: Upper middle income | H87: IBRD
A88: 82 | C88: Guinea | D88: GIN | F88: Sub-Saharan Africa | G88: Low income | H88: IDA | I88: HIPC
A89: 83 | C89: Guinea Ecuatorial | D89: GNB | F89: Sub-Saharan Africa | G89: Low income | H89: IDA | I89: HIPC
A90: 84 | C90: Guinea-Bissau | D90: GUY | F90: Latin America & Caribbean | G90: Upper middle income | H90: IDA | I90: HIPC
A91: 85 | C91: Guyana | D91: HTI | F91: Latin America & Caribbean | G91: Low income | H91: IDA | I91: HIPC
A92: 86 | C92: Haití | D92: HND | F92: Latin America & Caribbean | G92: Lower middle income | H92: IDA | I92: HIPC
A93: 87 | C93: Honduras | D93: HKG | F93: East Asia & Pacific | G93: High income | H93: ..
A94: 88 | C94: Hong Kong, China, Región Administrativa Especial de | D94: HUN | F94: Europe & Central Asia | G94: High income | H94: ..
A95: 89 | C95: Hungría | D95: ISL | F95: Europe & Central Asia | G95: High income | H95: ..
A96: 90 | C96: India | D96: IND | F96: South Asia | G96: Lower middle income | H96: IBRD
A97: 91 | C97: Indonesia | D97: IDN | F97: East Asia & Pacific | G97: Upper middle income | H97: IBRD
A98: 92 | C98: Irak | D98: IRN | F98: Middle East & North Africa | G98: Upper middle income | H98: IBRD
A99: 93 | C99: Irán, República Islámica de | D99: IRQ | F99: Middle East & North Africa | G99: Upper middle income | H99: IBRD
A100: 94 | C100: Irlanda | D100: IRL | F100: Europe & Central Asia | G100: High income | H100: .. | I100: EMU
A101: 95 | C101: Isla de Man | D101: IMN | F101: Europe & Central Asia | G101: High income | H101: ..
A102: 96 | C102: Islandia | D102: ISR | F102: Middle East & North Africa | G102: High income | H102: ..
A103: 97 | C103: Islas Caimán | D103: ITA | F103: Europe & Central Asia | G103: High income | H103: .. | I103: EMU
A104: 98 | C104: Islas del Canal | D104: JAM | F104: Latin America & Caribbean | G104: Upper middle income | H104: IBRD
A105: 99 | C105: Islas Feroe | D105: JPN | F105: East Asia & Pacific | G105: High income | H105: ..
A106: 100 | C106: Islas Marshall | D106: JOR | F106: Middle East & North Africa | G106: Upper middle income | H106: IBRD
A107: 101 | C107: Islas Salomón | D107: KAZ | F107: Europe & Central Asia | G107: Upper middle income | H107: IBRD
A108: 102 | C108: Islas Turcas y Caicos | D108: KEN | F108: Sub-Saharan Africa | G108: Lower middle income | H108: Blend
A109: 103 | C109: Islas Vírgenes (EE. UU.) | D109: KIR | F109: East Asia & Pacific | G109: Lower middle income | H109: IDA
A110: 104 | C110: Islas Vírgenes Británicas | D110: PRK | F110: East Asia & Pacific | G110: Low income | H110: ..
A111: 105 | C111: Israel | D111: KOR | F111: East Asia & Pacific | G111: High income | H111: ..
A112: 106 | C112: Italia | D112: XKX | F112: Europe & Central Asia | G112: Upper middle income | H112: IDA
A113: 107 | C113: Jamaica | D113: KWT | F113: Middle East & North Africa | G113: High income | H113: ..
A114: 108 | C114: Japón | D114: KGZ | F114: Europe & Central Asia | G114: Lower middle income | H114: IDA
A115: 109 | C115: Jordania | D115: LAO | F115: East Asia & Pacific | G115: Lower middle income | H115: IDA
A116: 110 | C116: Kazajistán | D116: LVA | F116: Europe & Central Asia | G116: High income | H116: .. | I116: EMU
A117: 111 | C117: Kenia | D117: LBN | F117: Middle East & North Africa | G117: Upper middle income | H117: IBRD
A118: 112 | C118: Kirguistán | D118: LSO | F118: Sub-Saharan Africa | G118: Lower middle income | H118: IDA
A119: 113 | C119: Kiribati | D119: LBR | F119: Sub-Saharan Africa | G119: Low income | H119: IDA | I119: HIPC
A120: 114 | C120: Kosovo | D120: LBY | F120: Middle East & North Africa | G120: Upper middle income | H120: IBRD
A121: 115 | C121: Kuwait | D121: LIE | F121: Europe & Central Asia | G121: High income | H121: ..
A122: 116 | C122: Lao, República Democrática Popular | D122: LTU | F122: Europe & Central Asia | G122: High income | H122: .. | I122: EMU
A123: 117 | C123: Lesoto | D123: LUX | F123: Europe & Central Asia | G123: High income | H123: .. | I123: EMU
A124: 118 | C124: Letonia | D124: MAC | F124: East Asia & Pacific | G124: High income | H124: ..
A125: 119 | C125: Líbano | D125: MDG | F125: Sub-Saharan Africa | G125: Low income | H125: IDA | I125: HIPC
A126: 120 | C126: Liberia | D126: MWI | F126: Sub-Saharan Africa | G126: Low income | H126: IDA | I126: HIPC
A127: 121 | C127: Libia | D127: MYS | F127: East Asia & Pacific | G127: Upper middle income | H127: IBRD
A128: 122 | C128: Liechtenstein | D128: MDV | F128: South Asia | G128: Upper middle income | H128: IDA
A129: 123 | C129: Lituania | D129: MLI | F129: Sub-Saharan Africa | G129: Low income | H129: IDA | I129: HIPC
A130: 124 | C130: Luxemburgo | D130: MLT | F130: Middle East & North Africa | G130: High income | H130: .. | I130: EMU
A131: 125 | C131: Macao, China, Región Administrativa Especial de | D131: MHL | F131: East Asia & Pacific | G131: Upper middle income | H131: IDA
A132: 126 | C132: Macedonia del Norte | D132: MRT | F132: Sub-Saharan Africa | G132: Lower middle income | H132: IDA | I132: HIPC
A133: 127 | C133: Madagascar | D133: MUS | F133: Sub-Saharan Africa | G133: High income | H133: IBRD
A134: 128 | C134: Malasia | D134: MEX | F134: Latin America & Caribbean | G134: Upper middle income | H134: IBRD
A135: 129 | C135: Malawi | D135: FSM | F135: East Asia & Pacific | G135: Lower middle income | H135: IDA
A136: 130 | C136: Maldivas | D136: MDA | F136: Europe & Central Asia | G136: Lower middle income | H136: IBRD
A137: 131 | C137: Malí | D137: MCO | F137: Europe & Central Asia | G137: High income | H137: ..
A138: 132 | C138: Malta | D138: MNG | F138: East Asia & Pacific | G138: Lower middle income | H138: IBRD
A139: 133 | C139: Marianas del Norte, Islas | D139: MNE | F139: Europe & Central Asia | G139: Upper middle income | H139: IBRD
A140: 134 | C140: Marruecos | D140: MAR | F140: Middle East & North Africa | G140: Lower middle income | H140: IBRD
A141: 135 | C141: Mauricio | D141: MOZ | F141: Sub-Saharan Africa | G141: Low income | H141: IDA | I141: HIPC
A142: 136 | C142: Mauritania | D142: MMR | F142: East Asia & Pacific | G142: Lower middle income | H142: IDA
A143: 137 | C143: México | D143: NAM | F143: Sub-Saharan Africa | G143: Upper middle income | H143: IBRD
A144: 138 | C144: Micronesia, Estados Federados de | D144: NRU | F144: East Asia & Pacific | G144: High income | H144: IBRD
A145: 139 | C145: Moldavia | D145: NPL | F145: South Asia | G145: Lower middle income | H145: IDA
A146: 140 | C146: Mónaco | D146: NLD | F146: Europe & Central Asia | G146: High income | H146: .. | I146: EMU
A147: 141 | C147: Mongolia | D147: NCL | F147: East Asia & Pacific | G147: High income | H147: ..
A148: 142 | C148: Montenegro | D148: NZL | F148: East Asia & Pacific | G148: High income | H148: ..
A149: 143 | C149: Mozambique | D149: NIC | F149: Latin America & Caribbean | G149: Lower middle income | H149: IDA | I149: HIPC
A150: 144 | C150: Myanmar | D150: NER | F150: Sub-Saharan Africa | G150: Low income | H150: IDA | I150: HIPC
A151: 145 | C151: Namibia | D151: NGA | F151: Sub-Saharan Africa | G151: Lower middle income | H151: Blend
A152: 146 | C152: Nauru | D152: MKD | F152: Europe & Central Asia | G152: Upper middle income | H152: IBRD
A153: 147 | C153: Nepal | D153: MNP | F153: East Asia & Pacific | G153: High income | H153: ..
A154: 148 | C154: Nicaragua | D154: NOR | F154: Europe & Central Asia | G154: High income | H154: ..
A155: 149 | C155: Níger | D155: OMN | F155: Middle East & North Africa | G155: High income | H155: ..
A156: 150 | C156: Nigeria | D156: PAK | F156: South Asia | G156: Lower middle income | H156: Blend
A157: 151 | C157: Noruega | D157: PLW | F157: East Asia & Pacific | G157: High income | H157: IBRD
A158: 152 | C158: Nueva Caledonia | D158: PAN | F158: Latin America & Caribbean | G158: High income | H158: IBRD
A159: 153 | C159: Nueva Zelanda | D159: PNG | F159: East Asia & Pacific | G159: Lower middle income | H159: Blend
A160: 154 | C160: Omán | D160: PRY | F160: Latin America & Caribbean | G160: Upper middle income | H160: IBRD
A161: 155 | C161: Países Bajos | D161: PER | F161: Latin America & Caribbean | G161: Upper middle income | H161: IBRD
A162: 156 | C162: Pakistán | D162: PHL | F162: East Asia & Pacific | G162: Lower middle income | H162: IBRD
A163: 157 | C163: Palaos | D163: POL | F163: Europe & Central Asia | G163: High income | H163: IBRD
A164: 158 | C164: Panamá | D164: PRT | F164: Europe & Central Asia | G164: High income | H164: .. | I164: EMU
A165: 159 | C165: Papúa Nueva Guinea | D165: PRI | F165: Latin America & Caribbean | G165: High income | H165: ..
A166: 160 | C166: Paraguay | D166: QAT | F166: Middle East & North Africa | G166: High income | H166: ..
A167: 161 | C167: Perú | D167: ROU | F167: Europe & Central Asia | G167: High income | H167: IBRD
A168: 162 | C168: Polinesia Francesa | D168: RUS | F168: Europe & Central Asia | G168: Upper middle income | H168: IBRD
A169: 163 | C169: Polonia | D169: RWA | F169: Sub-Saharan Africa | G169: Low income | H169: IDA | I169: HIPC
A170: 164 | C170: Portugal | D170: WSM | F170: East Asia & Pacific | G170: Upper middle income | H170: IDA
A171: 165 | C171: Puerto Rico | D171: SMR | F171: Europe & Central Asia | G171: High income | H171: ..
A172: 166 | C172: Reino Unido | D172: STP | F172: Sub-Saharan Africa | G172: Lower middle income | H172: IDA | I172: HIPC
A173: 167 | C173: República Centroafricana | D173: SAU | F173: Middle East & North Africa | G173: High income | H173: ..
A174: 168 | C174: República Checa | D174: SEN | F174: Sub-Saharan Africa | G174: Lower middle income | H174: IDA | I174: HIPC
A175: 169 | C175: República Dominicana | D175: SRB | F175: Europe & Central Asia | G175: Upper middle income | H175: IBRD
A176: 170 | C176: República Eslovaca | D176: SYC | F176: Sub-Saharan Africa | G176: High income | H176: IBRD
A177: 171 | C177: Ruanda | D177: SLE | F177: Sub-Saharan Africa | G177: Low income | H177: IDA | I177: HIPC
A178: 172 | C178: Rumania | D178: SGP | F178: East Asia & Pacific | G178: High income | H178: ..
A179: 173 | C179: Samoa | D179: SXM | F179: Latin America & Caribbean | G179: High income | H179: ..
A180: 174 | C180: Samoa Americana | D180: SVK | F180: Europe & Central Asia | G180: High income | H180: .. | I180: EMU
A181: 175 | C181: San Cristóbal y Nieves | D181: SVN | F181: Europe & Central Asia | G181: High income | H181: .. | I181: EMU
A182: 176 | C182: San Marino | D182: SLB | F182: East Asia & Pacific | G182: Lower middle income | H182: IDA
A183: 177 | C183: San Martín (parte francesa) | D183: SOM | F183: Sub-Saharan Africa | G183: Low income | H183: IDA | I183: HIPC
A184: 178 | C184: San Vicente y las Granadinas | D184: ZAF | F184: Sub-Saharan Africa | G184: Upper middle income | H184: IBRD
A185: 179 | C185: Santa Lucía | D185: SSD | F185: Sub-Saharan Africa | G185: Low income | H185: IDA
A186: 180 | C186: Santo Tomé y Príncipe | D186: ESP | F186: Europe & Central Asia | G186: High income | H186: .. | I186: EMU
A187: 181 | C187: Senegal | D187: LKA | F187: South Asia | G187: Lower middle income | H187: IBRD
A188: 182 | C188: Serbia | D188: KNA | F188: Latin America & Caribbean | G188: High income | H188: IBRD
A189: 183 | C189: Seychelles | D189: LCA | F189: Latin America & Caribbean | G189: Upper middle income | H189: Blend
A190: 184 | C190: Sierra Leona | D190: MAF | F190: Latin America & Caribbean | G190: High income | H190: ..
A191: 185 | C191: Singapur | D191: VCT | F191: Latin America & Caribbean | G191: Upper middle income | H191: Blend
A192: 186 | C192: Sint Maarten (parte neerlandesa) | D192: SDN | F192: Sub-Saharan Africa | G192: Low income | H192: IDA | I192: HIPC
A193: 187 | C193: Siria, República Árabe | D193: SUR | F193: Latin America & Caribbean | G193: Upper middle income | H193: IBRD
A194: 188 | C194: Somalia | D194: SWE | F194: Europe & Central Asia | G194: High income | H194: ..
A195: 189 | C195: Sri Lanka | D195: CHE | F195: Europe & Central Asia | G195: High income | H195: ..
A196: 190 | C196: Sudáfrica | D196: SYR | F196: Middle East & North Africa | G196: Low income | H196: IDA
A197: 191 | C197: Sudán | D197: TWN | F197: East Asia & Pacific | G197: High income | H197: ..
A198: 192 | C198: Sudán del Sur | D198: TJK | F198: Europe & Central Asia | G198: Low income | H198: IDA
A199: 193 | C199: Suecia | D199: TZA | F199: Sub-Saharan Africa | G199: Lower middle income | H199: IDA | I199: HIPC
A200: 194 | C200: Suiza | D200: THA | F200: East Asia & Pacific | G200: Upper middle income | H200: IBRD
A201: 195 | C201: Surinam | D201: TLS | F201: East Asia & Pacific | G201: Lower middle income | H201: Blend
A202: 196 | C202: Tailandia | D202: TGO | F202: Sub-Saharan Africa | G202: Low income | H202: IDA | I202: HIPC
... 75 more rows

Sheet Data prep (hidden)
A2: Financial cost
B3: Total additional cost
A4: Safe operations | B4: =_xlfn.AGGREGATE(9, 5, 'Prices of additional resources'!H9:H56) -> 735467.3172
A5: Sustaining learning | B5: =_xlfn.AGGREGATE(9, 5, 'Prices of additional resources'!H58:H77) -> 1623266.333
A6: Supporting emotional wellbeing | B6: =_xlfn.AGGREGATE(9, 5, 'Prices of additional resources'!H79:H87) -> 382234
A7: Reaching the marginalized | B7: =_xlfn.AGGREGATE(9, 5, 'Prices of additional resources'!H89:H97) -> 608420
A8: Total | B8: =SUM(B4:B7) -> 3349387.65
B10: Total
A11: Additional cost | B11: =B8 -> 3349387.65
A12: Additional funding available | B12: =_xlfn.AGGREGATE(9, 5, Funding!F8:F19) -> 931000
A13: Funding gap | B13: =B11-B12 -> 2418387.65
A15: Figure 1
B16: Bottom block | C16: Top block | D16: Horizontal lines
A17: Costo adicional | B17: =B11 -> 3349387.65 | C17: =B17-B11 -> 0 | D17: =B13 -> 2418387.65
A18: Financiamiento adicional disponible | B18: =B13 -> 2418387.65 | C18: =B12 -> 931000 | D18: =D17 -> 2418387.65
A19: Brecha de financiamiento | B19: =B13 -> 2418387.65 | C19: =B12 -> 931000 | D19: =D17 -> 2418387.65
A21: Figure 2 & Figure 3
B22: Additional cost | C22: %
A23: Seguridad de las operaciones | B23: =B4 -> 735467.3172 | C23: =B23/SUM(B$23:B$26) -> 0.2195826204
A24: Sostener el aprendizaje | B24: =B5 -> 1623266.333 | C24: =B24/SUM(B$23:B$26) -> 0.4846457033
A25: Respaldar el bienestar emocional | B25: 382234 | C25: 0.1141205617
A26: Llegar a los marginados | B26: 608420 | C26: 0.1816511146
A28: Economic cost
A29: Figure 4 & Figure 5
B30: Additional cost
A31: Seguridad de las operaciones | B31: =_xlfn.AGGREGATE(9, 5, 'Prices of additional resources'!L9:L56) -> 735467.3172
A32: Sostener el aprendizaje | B32: =_xlfn.AGGREGATE(9, 5, 'Prices of additional resources'!L58:L77) -> 1623266.333
A33: Respaldar el bienestar emocional | B33: =_xlfn.AGGREGATE(9, 5, 'Prices of additional resources'!L79:L87) -> 382234
A34: Llegar a los marginados | B34: =_xlfn.AGGREGATE(9, 5, 'Prices of additional resources'!L89:L97) -> 608420

Sheet Output (hidden)
A1: Spreadsheet | B1: Measures | C1: Basic school information | D1: Basic school information | E1: Basic school information | F1: Basic school information | G1: Basic school information | H1: Basic school information | K1: Report
A2: Parameter | B2: Applicable to | C2: Location | D2: Education level: Pre-primary education | E2: Education level: Primary education | F2: Education level: Lower secondary education | G2: Education level: Upper secondary education | H2: Education level: Tertiary education | I2: Private school included | K2: Education levels | L2: Label of education level | M2: Education level + grade level | O2: Filter list
A3: Value | C3: 2 | D3: TRUE | E3: TRUE | F3: FALSE | G3: FALSE | H3: FALSE | I3: 1 | K3: =D3 -> TRUE | L3: Educación preescolar | M3: =_xlfn.CONCAT(L3, " (", 'Basic information about schools'!G35, ")") -> Educación preescolar (Edad 3-5) | O3: =_xlfn._xlws.FILTER(M3:M7, K3:K7 = TRUE, "") -> Educación preescolar (Edad 3-5)
A4: 1 | B4: Todas las escuelas, independientemente de su estado de reapertura | C4: ='Basic information about schools'!F9 -> Storyland | D4: educación preescolar, | E4: educación primaria, | F4: educación secundaria inferior, | G4: educación secundaria superior, | H4: educación terciaria | K4: =E3 -> TRUE | L4: Educación primaria | M4: =_xlfn.CONCAT(L4, " (", 'Basic information about schools'!G36, ")") -> Educación primaria (Jardín a 3.º) | O4: Educación primaria (Jardín a 3.º)
A5: 2 | B5: Escuelas reabiertas | C5: ='Basic information about schools'!G27 -> Región Neverland | K5: =F3 -> FALSE | L5: Educación secundaria inferior | M5: =_xlfn.CONCAT(L5, " (", 'Basic information about schools'!G37, ")") -> Educación secundaria inferior ()
A6: 3 | C6: ='Basic information about schools'!G28 -> 0 | K6: =G3 -> FALSE | L6: Educación secundaria superior | M6: =_xlfn.CONCAT(L6, " (", 'Basic information about schools'!G38, ")") -> Educación secundaria superior ()
A7: 4 | C7: ='Basic information about schools'!G29 -> 0 | K7: =H3 -> FALSE | L7: Educación terciaria | M7: =_xlfn.CONCAT(L7, " (", 'Basic information about schools'!G39, ")") -> Educación terciaria ()
A8: 5 | C8: ='Basic information about schools'!G30 -> 0
A9: 6
A10: 7
A11: 8
A12: 9
A13: 10
B16: Conteo de palabras
B17: =SUM(IF(LEN(TRIM(B3:L7))=0,0,LEN(TRIM(B3:L7))-LEN(SUBSTITUTE(B3:L7," ",""))+1)) -> 52
